{"text_format":"1","workbook":"xlsx","n_sheets":9,"sheets":["Revision History","HDD Compatibility List","DAHUA Product Search","TypeA","TypeB","TypeC","TypeD","TypeE","TypeF"],"not_rendered":{"charts":0,"images":7,"macros":1,"external_links":0,"defined_names":2,"comments":0,"pivot_tables":0},"unopened":[],"bounds":{"document_bytes":16777216,"sheet_cells":100000,"rows_first":2000,"rows_last":500,"rows_between":2000,"halvings":0,"cell_chars":16384,"cell_head_chars":4096},"cells_cut":0,"cells_raw":0,"read":"whole","date_system":"1900"}

{"sheet":"Revision History","index":0,"n_rows":8,"n_cols":4,"rows_kept":8,"cut":false,"hidden":false,"merged":[[0,1,0,3]]}
[null,"Revision History"]
[null,"Date","Revision contents","Reviser"]
[null,"2019-06-20","New Hard Disk Drive Compatibility List for DAHUA Products","Zhao Hua"]
[null,"2019-07-30","Add ST8000VX004 ST10000VE0008 ST12000VE0008 ST14000VE0008 WD121EVRX WD121PURX","Zhao Hua"]
[null,"2019-08-28","Delete all 2.5\" HDD, add ST1000NM000A ST2000NM000A ST3000NM000A ST4000NM000A ST6000NM021A ST8000NM000A","Zhao Hua"]
[null,"2019-09-29","Add ST1000NM001A ST2000NM003A ST3000NM001A ST4000NM003A","Zhao Hua"]
[null,"2019-10-08","Add ST2000VX012 ST4000VX005 ST2000VM005 ST4000VM004","Zhao Hua"]
[null,"2020-06-17","Add ST10000NM001G ST12000NM001G ST14000NM001G ST16000NM001G ST10000NM002G ST12000NM002G ST14000NM002G ST16000NM002G ST6000NM029A ST8000NM001A ST8000VE000 WD82EVRX-52DZFY0 WD82PURX-69GVLY0 WD82PURX-64GVLY0 WD82PURZ-85TEUY0","Zhao Hua"]

{"sheet":"HDD Compatibility List","index":1,"n_rows":186,"n_cols":10,"rows_kept":186,"cut":false,"hidden":false,"merged":[[0,1,0,7],[0,9,0,14]]}
[null,"HDD Compatibility List for DAHUA Products",null,null,null,null,null,null,null,"Tips: After enabling the macro, you can click the HDD model number to view the compatiblility information.\n小贴士：启用宏后，点击硬盘型号可显示该硬盘兼容的设备信息。"]
[null,"Class","Brand","Series","Model Number","Capacity","Type","State"]
[null,"Compatible with EVS/IVSS/CSS/DSS/ESS/MCS Products, support RAID"]
[null,"Enterprise","Seagate","Constellation ES","ST1000NM0033","1TB","3.5\" SATA HDD","EOL"]
[null,"Enterprise","Seagate","Constellation ES","ST2000NM0033","2TB","3.5\" SATA HDD","EOL"]
[null,"Enterprise","Seagate","Constellation ES","ST3000NM0033","3TB","3.5\" SATA HDD","EOL"]
[null,"Enterprise","Seagate","Constellation ES","ST4000NM0033","4TB","3.5\" SATA HDD","EOL"]
[null,"Enterprise","Seagate","Capacity 3.5 HDD","ST4000NM0024","4TB","3.5\" SATA HDD","EOL"]
[null,"Enterprise","Seagate","Capacity 3.5 HDD","ST6000NM0024","6TB","3.5\" SATA HDD","EOL"]
[null,"Enterprise","Seagate","Exos 7E8","ST1000NM0055","1TB","3.5\" SATA HDD","EOL"]
[null,"Enterprise","Seagate","Exos 7E8","ST2000NM0055","2TB","3.5\" SATA HDD","EOL"]
[null,"Enterprise","Seagate","Exos 7E8","ST3000NM0005","3TB","3.5\" SATA HDD","EOL"]
[null,"Enterprise","Seagate","Exos 7E8","ST4000NM0035","4TB","3.5\" SATA HDD","EOL"]
[null,"Enterprise","Seagate","Exos 7E8","ST6000NM0115","6TB","3.5\" SATA HDD","EOL"]
[null,"Enterprise","Seagate","Exos 7E8","ST8000NM0055","8TB","3.5\" SATA HDD","EOL"]
[null,"Enterprise","Seagate","Exos 7E8","ST1000NM000A","1TB","3.5\" SATA HDD","Active"]
[null,"Enterprise","Seagate","Exos 7E8","ST2000NM000A","2TB","3.5\" SATA HDD","Active"]
[null,"Enterprise","Seagate","Exos 7E8","ST3000NM000A","3TB","3.5\" SATA HDD","Active"]
[null,"Enterprise","Seagate","Exos 7E8","ST4000NM000A","4TB","3.5\" SATA HDD","Active"]
[null,"Enterprise","Seagate","Exos 7E8","ST6000NM021A","6TB","3.5\" SATA HDD","Active"]
[null,"Enterprise","Seagate","Exos 7E8","ST8000NM000A","8TB","3.5\" SATA HDD","Active"]
[null,"Enterprise","Seagate","Exos X10","ST10000NM0016","10TB","3.5\" SATA HDD","EOL"]
[null,"Enterprise","Seagate","Exos X14","ST10000NM0478","10TB","3.5\" SATA HDD","EOL"]
[null,"Enterprise","Seagate","Exos X14","ST12000NM0008","12TB","3.5\" SATA HDD","EOL"]
[null,"Enterprise","Seagate","Exos X14","ST14000NM0018","14TB","3.5\" SATA HDD","EOL"]
[null,"Enterprise","Seagate","Exos X16","ST10000NM001G","10TB","3.5\" SATA HDD","Active"]
[null,"Enterprise","Seagate","Exos X16","ST12000NM001G","12TB","3.5\" SATA HDD","Active"]
[null,"Enterprise","Seagate","Exos X16","ST14000NM001G","14TB","3.5\" SATA HDD","Active"]
[null,"Enterprise","Seagate","Exos X16","ST16000NM001G","16TB","3.5\" SATA HDD","Active"]
[null,"Enterprise","Western Digital","RE","WD1003FBYZ-010FB0","1TB","3.5\" SATA HDD","EOL"]
[null,"Enterprise","Western Digital","RE","WD1004FBYZ-01CRVB0","1TB","3.5\" SATA HDD","EOL"]
[null,"Enterprise","Western Digital","RE","WD2000FYYZ-01P4ZB0","2TB","3.5\" SATA HDD","EOL"]
[null,"Enterprise","Western Digital","RE","WD2004FBYZ-01CRVB0","2TB","3.5\" SATA HDD","EOL"]
[null,"Enterprise","Western Digital","RE","WD3000FYYZ-01UL1B0","3TB","3.5\" SATA HDD","EOL"]
[null,"Enterprise","Western Digital","RE","WD4000FYYZ-01B7CB1","4TB","3.5\" SATA HDD","EOL"]
[null,"Enterprise","Western Digital","Gold","WD2000F9YZ-00N6ML0","2TB","3.5\" SATA HDD","EOL"]
[null,"Enterprise","Western Digital","Gold","WD3000F9YZ-00CV0L0","3TB","3.5\" SATA HDD","EOL"]
[null,"Enterprise","Western Digital","Gold","WD4000F9YZ-00CLYL0","4TB","3.5\" SATA HDD","EOL"]
[null,"Enterprise","Western Digital","Gold","WD4002FYYZ-01B7CB0","4TB","3.5\" SATA HDD","EOL"]
[null,"Enterprise","Western Digital","Gold","WD6001FSYZ-01BVTB0","6TB","3.5\" SATA HDD","EOL"]
[null,"Enterprise","Western Digital","Gold","WD6002FRYZ-01WD5B0","6TB","3.5\" SATA HDD","EOL"]
[null,"Enterprise","Western Digital","Gold","WD8002FRYZ-01FF2B0","8TB","3.5\" SATA HDD","EOL"]
[null,"Enterprise","Western Digital","Ultrastar","HUS724030ALA640","3TB","3.5\" SATA HDD","EOL"]
[null,"Enterprise","Western Digital","Ultrastar","HUS726060ALE610","6TB","3.5\" SATA HDD","EOL"]
[null,"Enterprise","Western Digital","Ultrastar","HUH728060ALE600","6TB","3.5\" SATA HDD","EOL"]
[null,"Enterprise","Western Digital","Ultrastar","HUH728080ALE600","8TB","3.5\" SATA HDD","EOL"]
[null,"Enterprise","Western Digital","Ultrastar","HUS726T4TALE6L4","4TB","3.5\" SATA HDD","Active"]
[null,"Enterprise","Western Digital","Ultrastar","HUS726T6TALE6L4","6TB","3.5\" SATA HDD","Active"]
[null,"Enterprise","Western Digital","Ultrastar","HUS728T8TALE6L4","8TB","3.5\" SATA HDD","Active"]
[null,"Enterprise","Toshiba","Tomcat-SATA","MG04ACA400N","4TB","3.5\" SATA HDD","Active"]
[null,"Enterprise","Toshiba","Tomcat-SATA","MG04ACA600E","6TB","3.5\" SATA HDD","Active"]
[null,"Compatible with select models of EVS/IVSS/CSS/DSS/ESS/MCS Products, support RAID"]
[null,"Enterprise","Seagate","Constellation ES","ST1000NM0023","1TB","3.5\" SAS HDD","EOL"]
[null,"Enterprise","Seagate","Constellation ES","ST2000NM0023","2TB","3.5\" SAS HDD","EOL"]
[null,"Enterprise","Seagate","Constellation ES","ST3000NM0023","3TB","3.5\" SAS HDD","EOL"]
[null,"Enterprise","Seagate","Constellation ES","ST4000NM0023","4TB","3.5\" SAS HDD","EOL"]
[null,"Enterprise","Seagate","Constellation ES","ST6000NM0014","6TB","3.5\" SAS HDD","EOL"]
[null,"Enterprise","Seagate","Capacity 3.5 HDD","ST6000NM0034","6TB","3.5\" SAS HDD","EOL"]
[null,"Enterprise","Seagate","Exos 7E8","ST1000NM0045","1TB","3.5\" SAS HDD","EOL"]
[null,"Enterprise","Seagate","Exos 7E8","ST2000NM0045","2TB","3.5\" SAS HDD","EOL"]
[null,"Enterprise","Seagate","Exos 7E8","ST3000NM0025","3TB","3.5\" SAS HDD","EOL"]
[null,"Enterprise","Seagate","Exos 7E8","ST4000NM0025","4TB","3.5\" SAS HDD","EOL"]
[null,"Enterprise","Seagate","Exos 7E8","ST6000NM0095","6TB","3.5\" SAS HDD","EOL"]
[null,"Enterprise","Seagate","Exos 7E8","ST8000NM0075","8TB","3.5\" SAS HDD","EOL"]
[null,"Enterprise","Seagate","Exos 7E8","ST1000NM001A","1TB","3.5\" SAS HDD","Active"]
[null,"Enterprise","Seagate","Exos 7E8","ST2000NM003A","2TB","3.5\" SAS HDD","Active"]
[null,"Enterprise","Seagate","Exos 7E8","ST3000NM001A","3TB","3.5\" SAS HDD","Active"]
[null,"Enterprise","Seagate","Exos 7E8","ST4000NM003A","4TB","3.5\" SAS HDD","Active"]
[null,"Enterprise","Seagate","Exos 7E8","ST6000NM029A","6TB","3.5\" SAS HDD","Active"]
[null,"Enterprise","Seagate","Exos 7E8","ST8000NM001A","8TB","3.5\" SAS HDD","Active"]
[null,"Enterprise","Seagate","Exos X14","ST10000NM0528","10TB","3.5\" SAS HDD","EOL"]
[null,"Enterprise","Seagate","Exos X14","ST12000NM0038","12TB","3.5\" SAS HDD","EOL"]
[null,"Enterprise","Seagate","Exos X14","ST14000NM0048","14TB","3.5\" SAS HDD","EOL"]
[null,"Enterprise","Seagate","Exos X16","ST10000NM002G","10TB","3.5\" SAS HDD","Active"]
[null,"Enterprise","Seagate","Exos X16","ST12000NM002G","12TB","3.5\" SAS HDD","Active"]
[null,"Enterprise","Seagate","Exos X16","ST14000NM002G","14TB","3.5\" SAS HDD","Active"]
[null,"Enterprise","Seagate","Exos X16","ST16000NM002G","16TB","3.5\" SAS HDD","Active"]
[null,"Enterprise","Western Digital","Ultrastar","HUS726020AL5210","2TB","3.5\" SAS HDD","EOL"]
[null,"Enterprise","Western Digital","Ultrastar","HUS726040AL5210","4TB","3.5\" SAS HDD","EOL"]
[null,"Enterprise","Western Digital","Ultrastar","HUS726060AL5210","6TB","3.5\" SAS HDD","EOL"]
[null,"Enterprise","Western Digital","Ultrastar","HUS726T4TAL5204","4TB","3.5\" SAS HDD","Active"]
[null,"Enterprise","Western Digital","Ultrastar","HUS726T6TAL5204","6TB","3.5\" SAS HDD","Active"]
[null,"Enterprise","Western Digital","Ultrastar","HUS728T8TAL5204","8TB","3.5\" SAS HDD","Active"]
[null,"Compatible with IVSS/NVR/XVR/HCVR/DVR Products, support RAID"]
[null,"Surveillance","Seagate","SkyHawk AI","ST4000VE001","4TB","3.5\" SATA HDD","EOL"]
[null,"Surveillance","Seagate","SkyHawk AI","ST6000VE001","6TB","3.5\" SATA HDD","EOL"]
[null,"Surveillance","Seagate","SkyHawk AI","ST8000VE0004","8TB","3.5\" SATA HDD","Active"]
[null,"Surveillance","Seagate","SkyHawk AI","ST10000VE0004","10TB","3.5\" SATA HDD","Active"]
[null,"Surveillance","Seagate","SkyHawk AI","ST10000VE0008","10TB","3.5\" SATA HDD","EOL"]
[null,"Surveillance","Seagate","SkyHawk AI","ST12000VE0008","12TB","3.5\" SATA HDD","EOL"]
[null,"Surveillance","Seagate","SkyHawk AI","ST14000VE0008","14TB","3.5\" SATA HDD","EOL"]
[null,"Surveillance","Seagate","SkyHawk AI","ST8000VE000","8TB","3.5\" SATA HDD","Active"]
[null,"Surveillance","Western Digital","Purple","WD101EVRX-52PT7Y0","10TB","3.5\" SATA HDD","EOL"]
[null,"Surveillance","Western Digital","Purple","WD101PURX-69K8LY0","10TB","3.5\" SATA HDD","EOL"]
[null,"Surveillance","Western Digital","Purple","WD101PURX-64K8LY0","10TB","3.5\" SATA HDD","EOL"]
[null,"Surveillance","Western Digital","Purple","WD101PURZ-85C62Y0","10TB","3.5\" SATA HDD","EOL"]
[null,"Surveillance","Western Digital","Purple","WD121EVRX-52Y4GY0","12TB","3.5\" SATA HDD","Active"]
[null,"Surveillance","Western Digital","Purple","WD121PURX-69ARBY0","12TB","3.5\" SATA HDD","Active"]
[null,"Surveillance","Western Digital","Purple","WD121PURX-64ARBY0","12TB","3.5\" SATA HDD","Active"]
[null,"Surveillance","Western Digital","Purple","WD121PURZ-85GUCY0","12TB","3.5\" SATA HDD","Active"]
[null,"Surveillance","Western Digital","Purple","WD82EVRX-52DZFY0","8TB","3.5\" SATA HDD","Active"]
[null,"Surveillance","Western Digital","Purple","WD82PURX-69GVLY0","8TB","3.5\" SATA HDD","Active"]
[null,"Surveillance","Western Digital","Purple","WD82PURX-64GVLY0","8TB","3.5\" SATA HDD","Active"]
[null,"Surveillance","Western Digital","Purple","WD82PURZ-85TEUY0","8TB","3.5\" SATA HDD","Active"]
[null,"Compatible with 1 bay, 2 bays, 4 bays, 8 bays ,16 bays NVR/XVR/HCVR/DVR Products, support up to 64 video streams, support RAID"]
[null,"Surveillance","Seagate","SkyHawk","ST4000VX002","4TB","3.5\" SATA HDD","EOL"]
[null,"Surveillance","Seagate","SkyHawk","ST4000VX000","4TB","3.5\" SATA HDD","Active"]
[null,"Surveillance","Seagate","SkyHawk","ST4000VX007","4TB","3.5\" SATA HDD","Active"]
[null,"Surveillance","Seagate","SkyHawk","ST5000VX0001","5TB","3.5\" SATA HDD","EOL"]
[null,"Surveillance","Seagate","SkyHawk","ST5000VX0011","5TB","3.5\" SATA HDD","EOL"]
[null,"Surveillance","Seagate","SkyHawk","ST6000VX0001","6TB","3.5\" SATA HDD","EOL"]
[null,"Surveillance","Seagate","SkyHawk","ST6000VX0011","6TB","3.5\" SATA HDD","EOL"]
[null,"Surveillance","Seagate","SkyHawk","ST8000VX0002","8TB","3.5\" SATA HDD","EOL"]
[null,"Surveillance","Seagate","SkyHawk","ST8000VX0012","8TB","3.5\" SATA HDD","EOL"]
[null,"Surveillance","Seagate","SkyHawk","ST8000VX0022","8TB","3.5\" SATA HDD","EOL"]
[null,"Surveillance","Seagate","SkyHawk","ST6000VX0003","6TB","3.5\" SATA HDD","EOL"]
[null,"Surveillance","Seagate","SkyHawk","ST6000VX0023","6TB","3.5\" SATA HDD","EOL"]
[null,"Surveillance","Seagate","SkyHawk","ST10000VX0004","10TB","3.5\" SATA HDD","Active"]
[null,"Surveillance","Seagate","SkyHawk","ST6000VX001","6TB","3.5\" SATA HDD","Active"]
[null,"Surveillance","Seagate","SkyHawk","ST8000VX004","8TB","3.5\" SATA HDD","Active"]
[null,"Surveillance","Seagate","SkyHawk","ST4000VX005","4TB","3.5\" SATA HDD","Active"]
[null,"Surveillance","Western Digital","Purple","WD4NPURX-64TPFY0","4TB","3.5\" SATA HDD","EOL"]
[null,"Surveillance","Western Digital","Purple","WD6NPURX-64JC5Y0","6TB","3.5\" SATA HDD","EOL"]
[null,"Surveillance","Western Digital","Purple","WD81EVRX-52TB6Y0","8TB","3.5\" SATA HDD","EOL"]
[null,"Surveillance","Western Digital","Purple","WD81PURX-69U9SY0","8TB","3.5\" SATA HDD","EOL"]
[null,"Compatible with 1 bay, 2 bays, 4 bays, 8 bays NVR/XVR/HCVR/DVR Products, support up to 32 video streams, not support RAID"]
[null,"Surveillance","Seagate","SV35","ST1000VX000","1TB","3.5\" SATA HDD","EOL"]
[null,"Surveillance","Seagate","SV35","ST1000VX002","1TB","3.5\" SATA HDD","EOL"]
[null,"Surveillance","Seagate","SV35","ST2000VX000","2TB","3.5\" SATA HDD","EOL"]
[null,"Surveillance","Seagate","SV35","ST2000VX004","2TB","3.5\" SATA HDD","EOL"]
[null,"Surveillance","Seagate","SV35","ST3000VX000","3TB","3.5\" SATA HDD","EOL"]
[null,"Surveillance","Seagate","SV35","ST3000VX004","3TB","3.5\" SATA HDD","EOL"]
[null,"Surveillance","Seagate","SkyHawk","ST1000VX001","1TB","3.5\" SATA HDD","Active"]
[null,"Surveillance","Seagate","SkyHawk","ST1000VX005","1TB","3.5\" SATA HDD","Active"]
[null,"Surveillance","Seagate","SkyHawk","ST1000VX003","1TB","3.5\" SATA HDD","Active"]
[null,"Surveillance","Seagate","SkyHawk","ST2000VX003","2TB","3.5\" SATA HDD","Active"]
[null,"Surveillance","Seagate","SkyHawk","ST2000VX005","2TB","3.5\" SATA HDD","Active"]
[null,"Surveillance","Seagate","SkyHawk","ST2000VX008","2TB","3.5\" SATA HDD","Active"]
[null,"Surveillance","Seagate","SkyHawk","ST3000VX005","3TB","3.5\" SATA HDD","Active"]
[null,"Surveillance","Seagate","SkyHawk","ST3000VX006","3TB","3.5\" SATA HDD","Active"]
[null,"Surveillance","Seagate","SkyHawk","ST3000VX010","3TB","3.5\" SATA HDD","Active"]
[null,"Surveillance","Seagate","SkyHawk","ST3000VX009","3TB","3.5\" SATA HDD","Active"]
[null,"Surveillance","Seagate","SkyHawk","ST2000VX012","2TB","3.5\" SATA HDD","Active"]
[null,"Surveillance","Seagate","Video 3.5 HDD","ST3000VM006","3TB","3.5\" SATA HDD","Active"]
[null,"Surveillance","Seagate","Video 3.5 HDD","ST6000VM000","6TB","3.5\" SATA HDD","Active"]
[null,"Surveillance","Seagate","Video 3.5 HDD","ST2000VM005","2TB","3.5\" SATA HDD","Active"]
[null,"Surveillance","Seagate","Video 3.5 HDD","ST4000VM004","4TB","3.5\" SATA HDD","Active"]
[null,"Desktop","Western Digital","Green","WD10EURX-64RPPY0","1TB","3.5\" SATA HDD","EOL"]
[null,"Desktop","Western Digital","Green","WD20EURX-64HYZY0","2TB","3.5\" SATA HDD","EOL"]
[null,"Desktop","Western Digital","Green","WD30EURX-64HYZY0","3TB","3.5\" SATA HDD","EOL"]
[null,"Desktop","Western Digital","Green","WD40EURX-64WRWY0","4TB","3.5\" SATA HDD","EOL"]
[null,"Surveillance","Western Digital","Purple","WD10EVRX-52NXNY0","1TB","3.5\" SATA HDD","Active"]
[null,"Surveillance","Western Digital","Purple","WD10PURX-69KC9Y0","1TB","3.5\" SATA HDD","Active"]
[null,"Surveillance","Western Digital","Purple","WD10PURX-64KC9Y0","1TB","3.5\" SATA HDD","Active"]
[null,"Surveillance","Western Digital","Purple","WD10PURZ-85U8XY0","1TB","3.5\" SATA HDD","Active"]
[null,"Surveillance","Western Digital","Purple","WD20EVRX-52JT4Y0","2TB","3.5\" SATA HDD","EOL"]
[null,"Surveillance","Western Digital","Purple","WD20PURX-69PFUY0","2TB","3.5\" SATA HDD","EOL"]
[null,"Surveillance","Western Digital","Purple","WD20PURX-64PFUY0","2TB","3.5\" SATA HDD","EOL"]
[null,"Surveillance","Western Digital","Purple","WD20PURZ-85GU6Y0","2TB","3.5\" SATA HDD","EOL"]
[null,"Surveillance","Western Digital","Purple","WD30EVRX-52JT4Y0","3TB","3.5\" SATA HDD","EOL"]
[null,"Surveillance","Western Digital","Purple","WD30PURX-69PFUY0","3TB","3.5\" SATA HDD","EOL"]
[null,"Surveillance","Western Digital","Purple","WD30PURX-64PFUY0","3TB","3.5\" SATA HDD","EOL"]
[null,"Surveillance","Western Digital","Purple","WD30PURZ-85GU6Y0","3TB","3.5\" SATA HDD","EOL"]
[null,"Surveillance","Western Digital","Purple","WD40EVRX-52B9FY0","4TB","3.5\" SATA HDD","EOL"]
[null,"Surveillance","Western Digital","Purple","WD40PURX-69N96Y0","4TB","3.5\" SATA HDD","EOL"]
[null,"Surveillance","Western Digital","Purple","WD40PURX-64N96Y0","4TB","3.5\" SATA HDD","EOL"]
[null,"Surveillance","Western Digital","Purple","WD40PURZ-85TTDY0","4TB","3.5\" SATA HDD","EOL"]
[null,"Surveillance","Western Digital","Purple","WD60EVRX-52ADEY1","6TB","3.5\" SATA HDD","EOL"]
[null,"Surveillance","Western Digital","Purple","WD60PURX-69WY0Y1","6TB","3.5\" SATA HDD","EOL"]
[null,"Surveillance","Western Digital","Purple","WD60PURX-64WY0Y1","6TB","3.5\" SATA HDD","EOL"]
[null,"Surveillance","Western Digital","Purple","WD60PURZ-85ZUFY1","6TB","3.5\" SATA HDD","EOL"]
[null,"Surveillance","Toshiba","Sonance","MD03ACA200V","2TB","3.5\" SATA HDD","EOL"]
[null,"Surveillance","Toshiba","Sonance","MD03ACA300V","3TB","3.5\" SATA HDD","EOL"]
[null,"Surveillance","Toshiba","Sonance","MD03ACA400V","4TB","3.5\" SATA HDD","EOL"]
[null,"Surveillance","Toshiba","Sonance2","MD04ABA400V","4TB","3.5\" SATA HDD","Active"]
[null,"Surveillance","Toshiba","Sonance2","MD04ABA500V","5TB","3.5\" SATA HDD","EOL"]
[null,"Compatible with 1 bay, 2 bays NVR/XVR/HCVR/DVR Products, support up to 16 video streams, not support RAID"]
[null,"Surveillance","Seagate","Video 3.5 HDD","ST1000VM002","1TB","3.5\" SATA HDD","Active"]
[null,"Surveillance","Seagate","Video 3.5 HDD","ST2000VM003","2TB","3.5\" SATA HDD","EOL"]
[null,"Surveillance","Seagate","Video 3.5 HDD","ST3000VM002","3TB","3.5\" SATA HDD","Active"]
[null,"Surveillance","Seagate","Video 3.5 HDD","ST4000VM000","4TB","3.5\" SATA HDD","EOL"]
[null,"Surveillance","Seagate","SkyHawk Lite","ST1000VX008","1TB","3.5\" SATA HDD","Active"]
[null,"Surveillance","Seagate","SkyHawk Lite","ST2000VX007","2TB","3.5\" SATA HDD","Active"]
[null,"Surveillance","Toshiba","Mars C","DT01ABA100V","1TB","3.5\" SATA HDD","Active"]
[null,"Surveillance","Toshiba","Mars C","DT01ABA200V","2TB","3.5\" SATA HDD","Active"]
[null,"Surveillance","Toshiba","Mars C","DT01ABA300V","3TB","3.5\" SATA HDD","Active"]

{"sheet":"DAHUA Product Search","index":2,"n_rows":0,"n_cols":0,"rows_kept":0,"cut":false,"hidden":true,"merged":[]}

{"sheet":"TypeA","index":3,"n_rows":109,"n_cols":8,"rows_kept":109,"cut":false,"hidden":true,"merged":[]}
["TypeA","EVS/IVSS/MCS/CSS/DSS/ESS产品"]
["EVS","EVS7124S","EVS7136S","EVS7148S","EVS7024S-R","EVS7024D-R",null,{"$f":"OFFSET(B$2,INT((ROW(B2)-2)/5),MOD(ROW(B2)-2,5))","v":"EVS7124S"}]
[null,"EVS7036S-R","EVS7036D-R","EVS7048S-R","EVS7048D-R","EVS7064S-R",null,{"$f":"OFFSET(B$2,INT((ROW(B3)-2)/5),MOD(ROW(B3)-2,5))","v":"EVS7136S"}]
[null,"EVS7064D-R","EVS7072S-R","EVS7072D-R","EVS5016S","EVS5016S-R",null,"EVS7148S"]
[null,"EVS5024S-R","EVS5036S-R","EVS5048S-R",null,null,null,"EVS7024S-R"]
["IVSS","IVSS724DR-16I","IVSS724D-16I","IVSS724R-16I","IVSS724-16I","IVSS716DR-8I",null,"EVS7024D-R"]
[null,"IVSS716D-8I","IVSS716R-8I","IVSS716-8I","IVSS712-4I","IVSS708-2I",null,"EVS7036S-R"]
["CSS","CSS7124S-ERD  ","CSS7124S-10GERD","CSS7124S-VR","CSS7124S-VR10G","CSS7136S-ERD ",null,"EVS7036D-R"]
[null,"CSS7136S-10GERD","CSS7136S-VR","CSS7136S-VR10G","CSS7148S-ERD","CSS7148S-10GERD ",null,"EVS7048S-R"]
[null,"CSS7148S-VR","CSS7148S-VR10G","CSS7224E-VRI","CSS7224E-S","CSS7324S-ERD  ",null,"EVS7048D-R"]
[null,"CSS7324S-10GERD","CSS7324S-VR","CSS7324S-VR10G","CSS7336S-ERD ","CSS7336S-10GERD",null,"EVS7064S-R"]
[null,"CSS7336S-VR","CSS7336S-VR10G","CSS7348S-ERD","CSS7348S-10GERD ","CSS7348S-VR",null,"EVS7064D-R"]
[null,"CSS7348S-VR10G","CSS7324E-S","CSS7336E-S","CSS7348E-S",null,null,"EVS7072S-R"]
["DSS","DH-DSS7016S2-D","DH-DSS7016S2-DR","DH-DSS7024S2-D","DH-DSS7024S2-DR","OEM-DSS7016S2-D",null,"EVS7072D-R"]
[null,"OEM-DSS7024S2-DR","DH-DSS7016D-I","DH-DSS7016DR-I","DSS5000S2","DH-DSS5000S2",null,"EVS5016S"]
[null,"DH-DSS-H500-S2","DH-DSS-H710-S2",null,null,null,null,"EVS5016S-R"]
["ESS","ESS3124S-JR","ESS3124D-JR",null,null,null,null,"EVS5024S-R"]
["MCS","MCS7024R","MCS7024R-M",null,null,null,null,"EVS5036S-R"]
[null,null,null,null,null,null,null,"EVS5048S-R"]
[null,null,null,null,null,null,null,0]
[null,null,null,null,null,null,null,0]
[null,null,null,null,null,null,null,"IVSS724DR-16I"]
[null,null,null,null,null,null,null,"IVSS724D-16I"]
[null,null,null,null,null,null,null,"IVSS724R-16I"]
[null,null,null,null,null,null,null,"IVSS724-16I"]
[null,null,null,null,null,null,null,"IVSS716DR-8I"]
[null,null,null,null,null,null,null,"IVSS716D-8I"]
[null,null,null,null,null,null,null,"IVSS716R-8I"]
[null,null,null,null,null,null,null,"IVSS716-8I"]
[null,null,null,null,null,null,null,"IVSS712-4I"]
[null,null,null,null,null,null,null,"IVSS708-2I"]
[null,null,null,null,null,null,null,"CSS7124S-ERD  "]
[null,null,null,null,null,null,null,"CSS7124S-10GERD"]
[null,null,null,null,null,null,null,"CSS7124S-VR"]
[null,null,null,null,null,null,null,"CSS7124S-VR10G"]
[null,null,null,null,null,null,null,"CSS7136S-ERD "]
[null,null,null,null,null,null,null,"CSS7136S-10GERD"]
[null,null,null,null,null,null,null,"CSS7136S-VR"]
[null,null,null,null,null,null,null,"CSS7136S-VR10G"]
[null,null,null,null,null,null,null,"CSS7148S-ERD"]
[null,null,null,null,null,null,null,"CSS7148S-10GERD "]
[null,null,null,null,null,null,null,"CSS7148S-VR"]
[null,null,null,null,null,null,null,"CSS7148S-VR10G"]
[null,null,null,null,null,null,null,"CSS7224E-VRI"]
[null,null,null,null,null,null,null,"CSS7224E-S"]
[null,null,null,null,null,null,null,"CSS7324S-ERD  "]
[null,null,null,null,null,null,null,"CSS7324S-10GERD"]
[null,null,null,null,null,null,null,"CSS7324S-VR"]
[null,null,null,null,null,null,null,"CSS7324S-VR10G"]
[null,null,null,null,null,null,null,"CSS7336S-ERD "]
[null,null,null,null,null,null,null,"CSS7336S-10GERD"]
[null,null,null,null,null,null,null,"CSS7336S-VR"]
[null,null,null,null,null,null,null,"CSS7336S-VR10G"]
[null,null,null,null,null,null,null,"CSS7348S-ERD"]
[null,null,null,null,null,null,null,"CSS7348S-10GERD "]
[null,null,null,null,null,null,null,"CSS7348S-VR"]
[null,null,null,null,null,null,null,"CSS7348S-VR10G"]
[null,null,null,null,null,null,null,"CSS7324E-S"]
[null,null,null,null,null,null,null,"CSS7336E-S"]
[null,null,null,null,null,null,null,"CSS7348E-S"]
[null,null,null,null,null,null,null,0]
[null,null,null,null,null,null,null,"DH-DSS7016S2-D"]
[null,null,null,null,null,null,null,"DH-DSS7016S2-DR"]
[null,null,null,null,null,null,null,"DH-DSS7024S2-D"]
[null,null,null,null,null,null,null,"DH-DSS7024S2-DR"]
[null,null,null,null,null,null,null,"OEM-DSS7016S2-D"]
[null,null,null,null,null,null,null,{"$f":"OFFSET(B$2,INT((ROW(B67)-2)/5),MOD(ROW(B67)-2,5))","v":"OEM-DSS7024S2-DR"}]
[null,null,null,null,null,null,null,"DH-DSS7016D-I"]
[null,null,null,null,null,null,null,"DH-DSS7016DR-I"]
[null,null,null,null,null,null,null,"DSS5000S2"]
[null,null,null,null,null,null,null,"DH-DSS5000S2"]
[null,null,null,null,null,null,null,"DH-DSS-H500-S2"]
[null,null,null,null,null,null,null,"DH-DSS-H710-S2"]
[null,null,null,null,null,null,null,0]
[null,null,null,null,null,null,null,0]
[null,null,null,null,null,null,null,0]
[null,null,null,null,null,null,null,"ESS3124S-JR"]
[null,null,null,null,null,null,null,"ESS3124D-JR"]
[null,null,null,null,null,null,null,0]
[null,null,null,null,null,null,null,0]
[null,null,null,null,null,null,null,0]
[null,null,null,null,null,null,null,"MCS7024R"]
[null,null,null,null,null,null,null,"MCS7024R-M"]
[null,null,null,null,null,null,null,0]
[null,null,null,null,null,null,null,0]
[null,null,null,null,null,null,null,0]
[null,null,null,null,null,null,null,0]
[null,null,null,null,null,null,null,0]
[null,null,null,null,null,null,null,0]
[null,null,null,null,null,null,null,{"$f":"OFFSET(B$2,INT((ROW(B90)-2)/5),MOD(ROW(B90)-2,5))","v":0}]
[null,null,null,null,null,null,null,{"$f":"OFFSET(B$2,INT((ROW(B91)-2)/5),MOD(ROW(B91)-2,5))","v":0}]
[null,null,null,null,null,null,null,0]
[null,null,null,null,null,null,null,0]
[null,null,null,null,null,null,null,0]
[null,null,null,null,null,null,null,0]
[null,null,null,null,null,null,null,0]
[null,null,null,null,null,null,null,0]
[null,null,null,null,null,null,null,0]
[null,null,null,null,null,null,null,0]
[null,null,null,null,null,null,null,0]
[null,null,null,null,null,null,null,0]
[null,null,null,null,null,null,null,0]
[null,null,null,null,null,null,null,0]
[null,null,null,null,null,null,null,0]
[null,null,null,null,null,null,null,0]
[null,null,null,null,null,null,null,0]
[null,null,null,null,null,null,null,0]
[null,null,null,null,null,null,null,0]
[null,null,null,null,null,null,null,0]

{"sheet":"TypeB","index":4,"n_rows":16,"n_cols":6,"rows_kept":16,"cut":false,"hidden":true,"merged":[]}
["TypeB","EVS/IVSS/MCS/CSS/DSS/ESS产品，不包含EVS50系列"]
["EVS","EVS7124S","EVS7136S","EVS7148S","EVS7024S-R","EVS7024D-R"]
[null,"EVS7036S-R","EVS7036D-R","EVS7048S-R","EVS7048D-R","EVS7064S-R"]
[null,"EVS7064D-R","EVS7072S-R","EVS7072D-R"]
["IVSS","IVSS724DR-16I","IVSS724D-16I","IVSS724R-16I","IVSS724-16I","IVSS716DR-8I"]
[null,"IVSS716D-8I","IVSS716R-8I","IVSS716-8I","IVSS712-4I"]
["CSS","CSS7124S-ERD  ","CSS7124S-10GERD","CSS7124S-VR","CSS7124S-VR10G","CSS7136S-ERD "]
[null,"CSS7136S-10GERD","CSS7136S-VR","CSS7136S-VR10G","CSS7148S-ERD","CSS7148S-10GERD "]
[null,"CSS7148S-VR","CSS7148S-VR10G","CSS7224E-VRI","CSS7224E-S","CSS7324S-ERD  "]
[null,"CSS7324S-10GERD","CSS7324S-VR","CSS7324S-VR10G","CSS7336S-ERD ","CSS7336S-10GERD"]
[null,"CSS7336S-VR","CSS7336S-VR10G","CSS7348S-ERD","CSS7348S-10GERD ","CSS7348S-VR"]
[null,"CSS7348S-VR10G","CSS7324E-S","CSS7336E-S","CSS7348E-S"]
["DSS","DH-DSS7016S2-D","DH-DSS7016S2-DR","DH-DSS7024S2-D","DH-DSS7024S2-DR","OEM-DSS7016S2-D"]
[null,"OEM-DSS7024S2-DR","DH-DSS7016D-I","DH-DSS7016DR-I"]
["ESS","ESS3124S-JR","ESS3124D-JR"]
["MCS","MCS7024R","MCS7024R-M"]

{"sheet":"TypeC","index":5,"n_rows":449,"n_cols":8,"rows_kept":449,"cut":false,"hidden":true,"merged":[]}
["TypeC","支持IVSS/NVR/XVR/HCVR/DVR产品"]
["IVSS","IVSS724DR-16I","IVSS724D-16I","IVSS724R-16I","IVSS724-16I","IVSS716DR-8I",null,{"$f":"OFFSET(B$2,INT((ROW(B2)-2)/5),MOD(ROW(B2)-2,5))","v":"IVSS724DR-16I"}]
[null,"IVSS716D-8I","IVSS716R-8I","IVSS716-8I","IVSS712-4I","IVSS708-2I",null,{"$f":"OFFSET(B$2,INT((ROW(B3)-2)/5),MOD(ROW(B3)-2,5))","v":"IVSS724D-16I"}]
["NVR","LC-NVR2104-W-4KS2","LC-NVR2108-W-4KS2","NVR1104HC-P-S3","NVR1104HC-S3","NVR1108HC-S3",null,"IVSS724R-16I"]
[null,"NVR1108HS-8P-S3","NVR1B04-4P-EZIP","NVR1B04-EZIP","NVR1B04HC/E-EZIP","NVR1B04HC-4P/E-EZIP",null,"IVSS724-16I"]
[null,"NVR1B04HS-4P-EZIP","NVR1B04HS-EZIP","NVR1B08-EZIP","NVR1B08HC/E-EZIP","NVR1B08HS-8P/E-EZIP",null,"IVSS716DR-8I"]
[null,"NVR1B08HS-8P-EZIP","NVR1B08HS-EZIP","NVR2104-4KS2","NVR2104HS-4KS2","NVR2104HS-P-4KS2",null,"IVSS716D-8I"]
[null,"NVR2104HS-W-4KS2","NVR2104-P-4KS2","NVR2104-W-4KS2","NVR2108-4KS2","NVR2108-8P-4KS2",null,"IVSS716R-8I"]
[null,"NVR2108HS-4KS2","NVR2108HS-8P-4KS2","NVR2108HS-W-4KS2","NVR2108-W-4KS2","NVR2116-4KS2",null,"IVSS716-8I"]
[null,"NVR2116HS-4KS2","NVR4104-4KS2","NVR4104HS-4KS2","NVR4104HS-P-4KS2","NVR4104-P-4KS2",null,"IVSS712-4I"]
[null,"NVR4108-4KS2","NVR4108-8P-4KS2","NVR4108HS-4KS2","NVR4108HS-8P-4KS2","NVR4108HS-P-4KS2",null,"IVSS708-2I"]
[null,"NVR4108-P-4KS2","NVR4116-4KS2","NVR4116-8P-4KS2","NVR4116HS-4KS2","NVR4116HS-8P-4KS2",null,"LC-NVR2104-W-4KS2"]
[null,"NVR2204-4KS2","NVR2204-P-4KS2","NVR2208-4KS2","NVR2208-8P-4KS2","NVR2216-4KS2",null,"LC-NVR2108-W-4KS2"]
[null,"NVR2B16-EZIP","NVR4204-P-4KS2","NVR4208-4KS2","NVR4208-8P-4KS2","NVR4216-16P-4KS2",null,"NVR1104HC-P-S3"]
[null,"NVR4216-4KS2","NVR5208-4KS2(V2.0)","NVR5208-8P-4KS2","NVR5208-8P-4KS2(V2.0)","NVR5208-8P-4KS2E",null,"NVR1104HC-S3"]
[null,"NVR5216-16P-4KS2E","NVR5216-4KS2(V2.0)","NVR5216-8P-4KS2(V2.0)","NVR5216-8P-4KS2E","LC-NVR2104HS-W-HDS3-Imou",null,"NVR1108HC-S3"]
[null,"LC-NVR2104-W-HDS3","LC-NVR2108HS-W-HDS3-Imou","LC-NVR2108-W-HDS3","NVR1104-HDS2","NVR1104HS",null,"NVR1108HS-8P-S3"]
[null,"NVR1104HS-HDS2","NVR1104HS-P-HDS2","NVR1108-HDS2","NVR1108HS","NVR1108HS-HDS2",null,"NVR1B04-4P-EZIP"]
[null,"NVR2104HC-HDS2","NVR2104HC-P-HDS2","NVR2104HS-4KS3","NVR2104HS-HDS2","NVR2104HS-HDS3",null,"NVR1B04-EZIP"]
[null,"NVR2104HS-P-HDS2","NVR2104HS-P-HDS3","NVR2104HS-P-S1","NVR2104HS-S1","NVR2104HS-W-HDS3",null,"NVR1B04HC/E-EZIP"]
[null,"NVR2104-S2E","NVR2108HC-8P-HDS2","NVR2108HC-HDS2","NVR2108HS-4KS3","NVR2108HS-8P-HDS2",null,"NVR1B04HC-4P/E-EZIP"]
[null,"NVR2108HS-8P-HDS3","NVR2108HS-8P-S1","NVR2108HS-HDS3","NVR2108HS-S1","NVR2108HS-W-HDS3",null,"NVR1B04HS-4P-EZIP"]
[null,"NVR2108-S2E","NVR2116HS-HDS3","NVR4104H","NVR4104H-4G","NVR4104H-P",null,"NVR1B04HS-EZIP"]
[null,"NVR4104HS-P-HDS2","NVR4104H-W","NVR4108H","NVR4108H-4G","NVR4108H-8P",null,"NVR1B08-EZIP"]
[null,"NVR4108HS-8P-HDS2","NVR4116HS-4KS2","S3-04","S3-04-P","S3-08",null,"NVR1B08HC/E-EZIP"]
[null,"S3E-8P-08","S3E-P-04","NVR2204-4KS3","NVR2204-HDS3","NVR2204-P-HDS2",null,"NVR1B08HS-8P/E-EZIP"]
[null,"NVR2204-P-HDS3","NVR2204-P-S1","NVR2204-S1","NVR2208-4KS3","NVR2208-8P-HDS3",null,"NVR1B08HS-8P-EZIP"]
[null,"NVR2208-8P-S1","NVR2208-HDS3","NVR2208-S1","NVR2216-HDS3","NVR4208-4KS2",null,"NVR1B08HS-EZIP"]
[null,"NVR4208-8P-4KS2","NVR4208-8P-HDS2","NVR4208-E","NVR4208-HDS2","NVR4216-16P-4KS2",null,"NVR2104-4KS2"]
[null,"NVR4216-16P-HD","NVR4216-16P-HDS2","NVR4216-4KS2","NVR4216-E","NVR4216-HDS2",null,"NVR2104HS-4KS2"]
[null,"NVR5208-4KS2","NVR5216-4K","NVR5216-4KS2","NVR802-16-HDS2",null,null,"NVR2104HS-P-4KS2"]
[null,"NVR4208-8P-I","NVR4216-16P-I","NVR5216-16P-I","NVR5216-8P-I",null,null,"NVR2104HS-W-4KS2"]
[null,"NVR4232-16P-4KS2","NVR4232-4KS2","NVR5224-24P-4KS2","NVR5232-16P-4KS2E","NVR5232-4KS2(V2.0)",null,"NVR2104-P-4KS2"]
[null,"NVR5232-8P-4KS2(V2.0)","NVR4232-4KS2","NVR4232-E","NVR4232-HDS2","NVR5232-4K",null,"NVR2104-W-4KS2"]
[null,"NVR5232-4KS2","NVR4416-16P-4KS2","NVR4416-4KS2","NVR4432-16P-4KS2","NVR4432-4KS2",null,"NVR2108-4KS2"]
[null,"NVR5416-16P-4KS2E","NVR5416-4KS2(V2.0)","NVR5424-24P-4KS2","NVR5432-16P-4KS2E","NVR5432-4KS2(V2.0)",null,"NVR2108-8P-4KS2"]
[null,"NVR4408-4KS2","NVR4408-HDS2","NVR4416-16P-4KS2","NVR4416-16P-E","NVR4416-16P-HDS2",null,"NVR2108HS-4KS2"]
[null,"NVR4416-4KS2","NVR4416-E","NVR4416-HDS2","NVR4432-4KS2","NVR4432-HDS2",null,"NVR2108HS-8P-4KS2"]
[null,"NVR5408-4K","NVR5408-4KS2","NVR5416-4KS2","NVR5432-4K","NVR5432-4KS2",null,"NVR2108HS-W-4KS2"]
[null,"NVR4816-16P-4KS2","NVR4816-4KS2","NVR4832-16P-4KS2","NVR4832-4KS2","NVR5816-16P-4KS2E",null,"NVR2108-W-4KS2"]
[null,"NVR5816-4KS2(V2.0)","NVR5832-16P-4KS2E","NVR5832-4KS2(V2.0)","NVR608-32-4KS2","NVR4808-4KS2",null,"NVR2116-4KS2"]
[null,"NVR4808-HDS2","NVR4816-4KS2","NVR4816-HDS2","NVR4832-4KS2","NVR4832-HDS2",null,"NVR2116HS-4KS2"]
[null,"NVR5808-4K","NVR5808-4KS2","NVR5808FG-4KS2","NVR5816-4K","NVR5816-4KS2",null,"NVR4104-4KS2"]
[null,"NVR5816FG-4KS2","NVR5832-4K","NVR5832-4KS2","NVR5832FG-4KS2","NVR608-16-4KS2",null,"NVR4104HS-4KS2"]
[null,"NVR608-32-4KS2","NVR608-8-4KS2","NVR608H-32-4KS2","NVR808-16-HDS2","NVR808-32-HDS2",null,"NVR4104HS-P-4KS2"]
[null,"NVR808-8-HDS2","NVR4416-16P-I","NVR4432-I","NVR4832-I","NVR5432-16P-I",null,"NVR4104-P-4KS2"]
[null,"NVR5832-I","NVR402-I","NVR404-I","NVR4232-I","NVR4432-I",null,"NVR4108-4KS2"]
[null,"NVR4832-I","NVR502-I","NVR504-I","NVR5232-I","NVR5432-I",null,"NVR4108-8P-4KS2"]
[null,"NVR616-64-4KS2","NVR616D-64-4KS2","NVR616DR-64-4KS2","NVR616R-64-4KS2","NVR5016-4KS2",null,"NVR4108HS-4KS2"]
[null,"NVR5016FG-4KS2","NVR5032-4KS2","NVR5032FG-4KS2","NVR5064-4KS2","NVR5064FG-4KS2",null,"NVR4108HS-8P-4KS2"]
[null,"NVR616-64-4KS2","NVR616D-64-4KS2","NVR616DR-64-4KS2","NVR616R-64-4KS2","NVR816-32-HDS2",null,"NVR4108HS-P-4KS2"]
[null,"NVR816-64-HDS2","NVR5864-I","NVR5864FG-I","NVR5864-I","NVR5064FG-I",null,"NVR4108-P-4KS2"]
[null,"NVR5064-I",null,null,null,null,null,"NVR4116-4KS2"]
[null,"NVR608R-128-4KS2","NVR616-128-4KS2","NVR616D-128-4KS2","NVR616DR-128-4KS2","NVR616R-128-4KS2",null,"NVR4116-8P-4KS2"]
[null,"NVR6000-4K","NVR608-128-4KS2","NVR608R-128-4KS2","NVR616-128-4KS2","NVR616D-128-4KS2",null,"NVR4116HS-4KS2"]
[null,"NVR616DR-128-4KS2","NVR616R-128-4KS2","NVR624-128-4K","NVR624-128-4KS2","NVR624D-128-4KS2",null,"NVR4116HS-8P-4KS2"]
[null,"NVR624DR-128-4KS2","NVR624R-128-4KS2","NVR724-256","NVR724D-256","NVR724DR-256",null,"NVR2204-4KS2"]
[null,"NVR724R-256",null,null,null,null,null,"NVR2204-P-4KS2"]
["XVR","XVR1A04","XVR1A08","XVR1B04","XVR1B04H","XVR1B08",null,"NVR2208-4KS2"]
[null,"XVR1B08H","XVR4104C-X1","XVR4104HS-X1","XVR4108C-X1","XVR4108HS-X1",null,"NVR2208-8P-4KS2"]
[null,"XVR5104C-4KL-X","XVR5104C-X1","XVR5104H-4KL-X","XVR5104HE-X1","XVR5104HS-4KL-X",null,"NVR2216-4KS2"]
[null,"XVR5104HS-X1","XVR5104H-X1","XVR5108C-X","XVR5108H-4KL-X","XVR5108H-4KL-X-8P",null,"NVR2B16-EZIP"]
[null,"XVR5108HE-X","XVR5108HS-4KL-X","XVR5108HS-X","XVR5108H-X","XVR7104E-4KL-B-X",null,"NVR4204-P-4KS2"]
[null,"XVR7104E-4KL-X","XVR7104HE-4KL-X","XVR7108E-4KL-B-X","XVR7108E-4KL-X","XVR7108HE-4KL-X",null,"NVR4208-4KS2"]
[null,"XVR7108HE-4K-X","XVR5208AN-4KL-X","XVR5208AN-4KL-X-8P","XVR7208A-4KL-X","XVR7208A-4K-X",null,"NVR4208-8P-4KS2"]
[null,"XVR1B16","XVR1B16H","XVR4116HS-X","XVR5116H-4KL-X","XVR5116HE-X",null,"NVR4216-16P-4KS2"]
[null,"XVR5116HS-X","XVR5116H-X","XVR7116HE-4KL-X","XVR4216AN-X","XVR5216AN-4KL-X",null,{"$f":"OFFSET(B$2,INT((ROW(B67)-2)/5),MOD(ROW(B67)-2,5))","v":"NVR4216-4KS2"}]
[null,"XVR5216AN-4KL-X-16P","XVR5216AN-X","XVR5216A-X","XVR7216A-4KL-X","XVR5408L-X",null,"NVR5208-4KS2(V2.0)"]
[null,"XVR5416L-X","XVR5432L-X","XVR7416L-4KL-X","XVR5808S-X","XVR5816S-X",null,"NVR5208-8P-4KS2"]
[null,"XVR5832S-X","XVR7816S-4KL-X","XVR7816S-4KL-X-LP",null,null,null,"NVR5208-8P-4KS2(V2.0)"]
[null,"XVR8808S","XVR8816S","XVR8208A-4K-I","XVR8216A-4KL-I","XVR8816S-4KL-I",null,"NVR5208-8P-4KS2E"]
["HCVR","HCVR0804LC-NX-V2","HCVR4104HC-V4","HCVR4104HS-V4-E","HCVR5104HS-V4-E","HCVR5104HS-V5",null,"NVR5216-16P-4KS2E"]
[null,"HCVR5108HS-V4-E","HCVR5108HS-V5","HCVR7104H-4M","HCVR7104H-4M-V5","HCVR7104HS-V4",null,"NVR5216-4KS2(V2.0)"]
[null,"HCVR7104HS-V5","HCVR7108H-4M-V5","HCVR7108HS-V4","HCVR7108HS-V5","HCVR0404HG-AF-V4",null,"NVR5216-8P-4KS2(V2.0)"]
[null,"HCVR0404HG-A-V4","HCVR0404IF-AF","HCVR0804HG-AF-V4","HCVR0804HG-A-V4","HCVR0804IF-AF",null,"NVR5216-8P-4KS2E"]
[null,"HCVR0805IF-AF","HCVR5208A-V4-E","HCVR5208A-V5","HCVR7208A-V4","HCVR7208A-V5",null,"LC-NVR2104HS-W-HDS3-Imou"]
[null,"HCVR5116HS-V4-E","HCVR5116HS-V5","HCVR1604HG-AF-V4","HCVR1604HG-A-V4","HCVR1604TG-AF",null,"LC-NVR2104-W-HDS3"]
[null,"HCVR1605IF-AF","HCVR5216AN-V4-E","HCVR5216A-V4-E","HCVR5216A-V5","HCVR7216AN-V4",null,"LC-NVR2108HS-W-HDS3-Imou"]
[null,"HCVR7216A-V4","HCVR7216A-V5","HCVR5232AN-V4-E","HCVR0804HG-LF-V4","HCVR0804HG-L-V4",null,"LC-NVR2108-W-HDS3"]
[null,"HCVR1604HG-LF-V4","HCVR1604HG-L-V4","HCVR5408L-V4","HCVR5416L-V4","HCVR5432L-V4",null,"NVR1104-HDS2"]
[null,"HCVR5432L-V5","HCVR7408L-V4","HCVR7416L-V4","HCVR7416L-V5","HCVR0404FG-SF-V4",null,"NVR1104HS"]
[null,"HCVR0804FG-SF-V4","HCVR0804FG-U-V3","HCVR0804HG-SFD-V4","HCVR0804HG-S-V4","HCVR0804HG-URH-V4",null,"NVR1104HS-HDS2"]
[null,"HCVR0805HG-SM-V5","HCVR1604FG-SF-V4","HCVR1604FG-S-V3","HCVR1604FG-U-V3","HCVR1604FG-U-V4",null,"NVR1104HS-P-HDS2"]
[null,"HCVR1604HG-SFD-V4","HCVR1604HG-S-V4","HCVR1604HG-URH-V4","HCVR1605FG-SF-V5","HCVR1605HG-SF-V5",null,"NVR1108-HDS2"]
[null,"HCVR1605HG-S-V5","HCVR1605IF-SF","HCVR3204HG-S-V4","HCVR3205HG-S-V5","HCVR5808S-V4",null,"NVR1108HS"]
[null,"HCVR5816S-V4","HCVR5832S-V4","HCVR5832S-V5","HCVR7808S-V4","HCVR7816S-V4",null,"NVR1108HS-HDS2"]
[null,"HCVR7816S-V5",null,null,null,null,null,"NVR2104HC-HDS2"]
[null,"HCVR8216A-S3","HCVR8416L-S3","HCVR8816S-S3","HCVR8816S-URH-S3","HCVR1604HG-SF-V4",null,"NVR2104HC-P-HDS2"]
[null,"HCVR0804HG-SF-V4","HCVR1604FG-U-X","HCVR1604FG-U-X-V4","HCVR1604FG-XF-V4","HCVR1604HG-U-X-V4",null,"NVR2104HS-4KS3"]
[null,"HCVR1604HG-XF-V4","HCVR1605FG-XF-V5","HCVR1605IF-XF",null,null,null,"NVR2104HS-HDS2"]
[null,null,null,null,null,null,null,"NVR2104HS-HDS3"]
[null,null,null,null,null,null,null,"NVR2104HS-P-HDS2"]
[null,null,null,null,null,null,null,"NVR2104HS-P-HDS3"]
[null,null,null,null,null,null,null,"NVR2104HS-P-S1"]
[null,null,null,null,null,null,null,"NVR2104HS-S1"]
[null,null,null,null,null,null,null,"NVR2104HS-W-HDS3"]
[null,null,null,null,null,null,null,"NVR2104-S2E"]
[null,null,null,null,null,null,null,"NVR2108HC-8P-HDS2"]
[null,null,null,null,null,null,null,"NVR2108HC-HDS2"]
[null,null,null,null,null,null,null,"NVR2108HS-4KS3"]
[null,null,null,null,null,null,null,"NVR2108HS-8P-HDS2"]
[null,null,null,null,null,null,null,"NVR2108HS-8P-HDS3"]
[null,null,null,null,null,null,null,"NVR2108HS-8P-S1"]
[null,null,null,null,null,null,null,"NVR2108HS-HDS3"]
[null,null,null,null,null,null,null,"NVR2108HS-S1"]
[null,null,null,null,null,null,null,"NVR2108HS-W-HDS3"]
[null,null,null,null,null,null,null,"NVR2108-S2E"]
[null,null,null,null,null,null,null,"NVR2116HS-HDS3"]
[null,null,null,null,null,null,null,"NVR4104H"]
[null,null,null,null,null,null,null,"NVR4104H-4G"]
[null,null,null,null,null,null,null,"NVR4104H-P"]
[null,null,null,null,null,null,null,"NVR4104HS-P-HDS2"]
[null,null,null,null,null,null,null,"NVR4104H-W"]
[null,null,null,null,null,null,null,"NVR4108H"]
[null,null,null,null,null,null,null,"NVR4108H-4G"]
[null,null,null,null,null,null,null,"NVR4108H-8P"]
[null,null,null,null,null,null,null,"NVR4108HS-8P-HDS2"]
[null,null,null,null,null,null,null,"NVR4116HS-4KS2"]
[null,null,null,null,null,null,null,"S3-04"]
[null,null,null,null,null,null,null,"S3-04-P"]
[null,null,null,null,null,null,null,"S3-08"]
[null,null,null,null,null,null,null,"S3E-8P-08"]
[null,null,null,null,null,null,null,"S3E-P-04"]
[null,null,null,null,null,null,null,"NVR2204-4KS3"]
[null,null,null,null,null,null,null,"NVR2204-HDS3"]
[null,null,null,null,null,null,null,"NVR2204-P-HDS2"]
[null,null,null,null,null,null,null,"NVR2204-P-HDS3"]
[null,null,null,null,null,null,null,"NVR2204-P-S1"]
[null,null,null,null,null,null,null,"NVR2204-S1"]
[null,null,null,null,null,null,null,"NVR2208-4KS3"]
[null,null,null,null,null,null,null,{"$f":"OFFSET(B$2,INT((ROW(B131)-2)/5),MOD(ROW(B131)-2,5))","v":"NVR2208-8P-HDS3"}]
[null,null,null,null,null,null,null,"NVR2208-8P-S1"]
[null,null,null,null,null,null,null,"NVR2208-HDS3"]
[null,null,null,null,null,null,null,"NVR2208-S1"]
[null,null,null,null,null,null,null,"NVR2216-HDS3"]
[null,null,null,null,null,null,null,"NVR4208-4KS2"]
[null,null,null,null,null,null,null,"NVR4208-8P-4KS2"]
[null,null,null,null,null,null,null,"NVR4208-8P-HDS2"]
[null,null,null,null,null,null,null,"NVR4208-E"]
[null,null,null,null,null,null,null,"NVR4208-HDS2"]
[null,null,null,null,null,null,null,"NVR4216-16P-4KS2"]
[null,null,null,null,null,null,null,"NVR4216-16P-HD"]
[null,null,null,null,null,null,null,"NVR4216-16P-HDS2"]
[null,null,null,null,null,null,null,"NVR4216-4KS2"]
[null,null,null,null,null,null,null,"NVR4216-E"]
[null,null,null,null,null,null,null,"NVR4216-HDS2"]
[null,null,null,null,null,null,null,"NVR5208-4KS2"]
[null,null,null,null,null,null,null,"NVR5216-4K"]
[null,null,null,null,null,null,null,"NVR5216-4KS2"]
[null,null,null,null,null,null,null,"NVR802-16-HDS2"]
[null,null,null,null,null,null,null,0]
[null,null,null,null,null,null,null,"NVR4208-8P-I"]
[null,null,null,null,null,null,null,"NVR4216-16P-I"]
[null,null,null,null,null,null,null,"NVR5216-16P-I"]
[null,null,null,null,null,null,null,"NVR5216-8P-I"]
[null,null,null,null,null,null,null,0]
[null,null,null,null,null,null,null,"NVR4232-16P-4KS2"]
[null,null,null,null,null,null,null,"NVR4232-4KS2"]
[null,null,null,null,null,null,null,"NVR5224-24P-4KS2"]
[null,null,null,null,null,null,null,"NVR5232-16P-4KS2E"]
[null,null,null,null,null,null,null,"NVR5232-4KS2(V2.0)"]
[null,null,null,null,null,null,null,"NVR5232-8P-4KS2(V2.0)"]
[null,null,null,null,null,null,null,"NVR4232-4KS2"]
[null,null,null,null,null,null,null,"NVR4232-E"]
[null,null,null,null,null,null,null,"NVR4232-HDS2"]
[null,null,null,null,null,null,null,"NVR5232-4K"]
[null,null,null,null,null,null,null,"NVR5232-4KS2"]
[null,null,null,null,null,null,null,"NVR4416-16P-4KS2"]
[null,null,null,null,null,null,null,"NVR4416-4KS2"]
[null,null,null,null,null,null,null,"NVR4432-16P-4KS2"]
[null,null,null,null,null,null,null,"NVR4432-4KS2"]
[null,null,null,null,null,null,null,"NVR5416-16P-4KS2E"]
[null,null,null,null,null,null,null,"NVR5416-4KS2(V2.0)"]
[null,null,null,null,null,null,null,"NVR5424-24P-4KS2"]
[null,null,null,null,null,null,null,"NVR5432-16P-4KS2E"]
[null,null,null,null,null,null,null,"NVR5432-4KS2(V2.0)"]
[null,null,null,null,null,null,null,"NVR4408-4KS2"]
[null,null,null,null,null,null,null,"NVR4408-HDS2"]
[null,null,null,null,null,null,null,"NVR4416-16P-4KS2"]
[null,null,null,null,null,null,null,"NVR4416-16P-E"]
[null,null,null,null,null,null,null,"NVR4416-16P-HDS2"]
[null,null,null,null,null,null,null,"NVR4416-4KS2"]
[null,null,null,null,null,null,null,"NVR4416-E"]
[null,null,null,null,null,null,null,"NVR4416-HDS2"]
[null,null,null,null,null,null,null,"NVR4432-4KS2"]
[null,null,null,null,null,null,null,"NVR4432-HDS2"]
[null,null,null,null,null,null,null,"NVR5408-4K"]
[null,null,null,null,null,null,null,"NVR5408-4KS2"]
[null,null,null,null,null,null,null,"NVR5416-4KS2"]
[null,null,null,null,null,null,null,"NVR5432-4K"]
[null,null,null,null,null,null,null,"NVR5432-4KS2"]
[null,null,null,null,null,null,null,"NVR4816-16P-4KS2"]
[null,null,null,null,null,null,null,"NVR4816-4KS2"]
[null,null,null,null,null,null,null,"NVR4832-16P-4KS2"]
[null,null,null,null,null,null,null,{"$f":"OFFSET(B$2,INT((ROW(B195)-2)/5),MOD(ROW(B195)-2,5))","v":"NVR4832-4KS2"}]
[null,null,null,null,null,null,null,"NVR5816-16P-4KS2E"]
[null,null,null,null,null,null,null,"NVR5816-4KS2(V2.0)"]
[null,null,null,null,null,null,null,"NVR5832-16P-4KS2E"]
[null,null,null,null,null,null,null,"NVR5832-4KS2(V2.0)"]
[null,null,null,null,null,null,null,"NVR608-32-4KS2"]
[null,null,null,null,null,null,null,"NVR4808-4KS2"]
[null,null,null,null,null,null,null,"NVR4808-HDS2"]
[null,null,null,null,null,null,null,"NVR4816-4KS2"]
[null,null,null,null,null,null,null,"NVR4816-HDS2"]
[null,null,null,null,null,null,null,"NVR4832-4KS2"]
[null,null,null,null,null,null,null,"NVR4832-HDS2"]
[null,null,null,null,null,null,null,"NVR5808-4K"]
[null,null,null,null,null,null,null,"NVR5808-4KS2"]
[null,null,null,null,null,null,null,"NVR5808FG-4KS2"]
[null,null,null,null,null,null,null,"NVR5816-4K"]
[null,null,null,null,null,null,null,"NVR5816-4KS2"]
[null,null,null,null,null,null,null,"NVR5816FG-4KS2"]
[null,null,null,null,null,null,null,"NVR5832-4K"]
[null,null,null,null,null,null,null,"NVR5832-4KS2"]
[null,null,null,null,null,null,null,"NVR5832FG-4KS2"]
[null,null,null,null,null,null,null,"NVR608-16-4KS2"]
[null,null,null,null,null,null,null,"NVR608-32-4KS2"]
[null,null,null,null,null,null,null,"NVR608-8-4KS2"]
[null,null,null,null,null,null,null,"NVR608H-32-4KS2"]
[null,null,null,null,null,null,null,"NVR808-16-HDS2"]
[null,null,null,null,null,null,null,"NVR808-32-HDS2"]
[null,null,null,null,null,null,null,"NVR808-8-HDS2"]
[null,null,null,null,null,null,null,"NVR4416-16P-I"]
[null,null,null,null,null,null,null,"NVR4432-I"]
[null,null,null,null,null,null,null,"NVR4832-I"]
[null,null,null,null,null,null,null,"NVR5432-16P-I"]
[null,null,null,null,null,null,null,"NVR5832-I"]
[null,null,null,null,null,null,null,"NVR402-I"]
[null,null,null,null,null,null,null,"NVR404-I"]
[null,null,null,null,null,null,null,"NVR4232-I"]
[null,null,null,null,null,null,null,"NVR4432-I"]
[null,null,null,null,null,null,null,"NVR4832-I"]
[null,null,null,null,null,null,null,"NVR502-I"]
[null,null,null,null,null,null,null,"NVR504-I"]
[null,null,null,null,null,null,null,"NVR5232-I"]
[null,null,null,null,null,null,null,"NVR5432-I"]
[null,null,null,null,null,null,null,"NVR616-64-4KS2"]
[null,null,null,null,null,null,null,"NVR616D-64-4KS2"]
[null,null,null,null,null,null,null,"NVR616DR-64-4KS2"]
[null,null,null,null,null,null,null,"NVR616R-64-4KS2"]
[null,null,null,null,null,null,null,"NVR5016-4KS2"]
[null,null,null,null,null,null,null,"NVR5016FG-4KS2"]
[null,null,null,null,null,null,null,"NVR5032-4KS2"]
[null,null,null,null,null,null,null,"NVR5032FG-4KS2"]
[null,null,null,null,null,null,null,"NVR5064-4KS2"]
[null,null,null,null,null,null,null,"NVR5064FG-4KS2"]
[null,null,null,null,null,null,null,"NVR616-64-4KS2"]
[null,null,null,null,null,null,null,"NVR616D-64-4KS2"]
[null,null,null,null,null,null,null,"NVR616DR-64-4KS2"]
[null,null,null,null,null,null,null,"NVR616R-64-4KS2"]
[null,null,null,null,null,null,null,"NVR816-32-HDS2"]
[null,null,null,null,null,null,null,"NVR816-64-HDS2"]
[null,null,null,null,null,null,null,"NVR5864-I"]
[null,null,null,null,null,null,null,"NVR5864FG-I"]
[null,null,null,null,null,null,null,"NVR5864-I"]
[null,null,null,null,null,null,null,"NVR5064FG-I"]
[null,null,null,null,null,null,null,"NVR5064-I"]
[null,null,null,null,null,null,null,0]
[null,null,null,null,null,null,null,{"$f":"OFFSET(B$2,INT((ROW(B259)-2)/5),MOD(ROW(B259)-2,5))","v":0}]
[null,null,null,null,null,null,null,0]
[null,null,null,null,null,null,null,0]
[null,null,null,null,null,null,null,"NVR608R-128-4KS2"]
[null,null,null,null,null,null,null,"NVR616-128-4KS2"]
[null,null,null,null,null,null,null,"NVR616D-128-4KS2"]
[null,null,null,null,null,null,null,"NVR616DR-128-4KS2"]
[null,null,null,null,null,null,null,"NVR616R-128-4KS2"]
[null,null,null,null,null,null,null,"NVR6000-4K"]
[null,null,null,null,null,null,null,"NVR608-128-4KS2"]
[null,null,null,null,null,null,null,"NVR608R-128-4KS2"]
[null,null,null,null,null,null,null,"NVR616-128-4KS2"]
[null,null,null,null,null,null,null,"NVR616D-128-4KS2"]
[null,null,null,null,null,null,null,"NVR616DR-128-4KS2"]
[null,null,null,null,null,null,null,"NVR616R-128-4KS2"]
[null,null,null,null,null,null,null,"NVR624-128-4K"]
[null,null,null,null,null,null,null,"NVR624-128-4KS2"]
[null,null,null,null,null,null,null,"NVR624D-128-4KS2"]
[null,null,null,null,null,null,null,"NVR624DR-128-4KS2"]
[null,null,null,null,null,null,null,"NVR624R-128-4KS2"]
[null,null,null,null,null,null,null,"NVR724-256"]
[null,null,null,null,null,null,null,"NVR724D-256"]
[null,null,null,null,null,null,null,"NVR724DR-256"]
[null,null,null,null,null,null,null,"NVR724R-256"]
[null,null,null,null,null,null,null,0]
[null,null,null,null,null,null,null,0]
[null,null,null,null,null,null,null,0]
[null,null,null,null,null,null,null,0]
[null,null,null,null,null,null,null,"XVR1A04"]
[null,null,null,null,null,null,null,"XVR1A08"]
[null,null,null,null,null,null,null,"XVR1B04"]
[null,null,null,null,null,null,null,"XVR1B04H"]
[null,null,null,null,null,null,null,"XVR1B08"]
[null,null,null,null,null,null,null,"XVR1B08H"]
[null,null,null,null,null,null,null,"XVR4104C-X1"]
[null,null,null,null,null,null,null,"XVR4104HS-X1"]
[null,null,null,null,null,null,null,"XVR4108C-X1"]
[null,null,null,null,null,null,null,"XVR4108HS-X1"]
[null,null,null,null,null,null,null,"XVR5104C-4KL-X"]
[null,null,null,null,null,null,null,"XVR5104C-X1"]
[null,null,null,null,null,null,null,"XVR5104H-4KL-X"]
[null,null,null,null,null,null,null,"XVR5104HE-X1"]
[null,null,null,null,null,null,null,"XVR5104HS-4KL-X"]
[null,null,null,null,null,null,null,"XVR5104HS-X1"]
[null,null,null,null,null,null,null,"XVR5104H-X1"]
[null,null,null,null,null,null,null,"XVR5108C-X"]
[null,null,null,null,null,null,null,"XVR5108H-4KL-X"]
[null,null,null,null,null,null,null,"XVR5108H-4KL-X-8P"]
[null,null,null,null,null,null,null,"XVR5108HE-X"]
[null,null,null,null,null,null,null,"XVR5108HS-4KL-X"]
[null,null,null,null,null,null,null,"XVR5108HS-X"]
[null,null,null,null,null,null,null,"XVR5108H-X"]
[null,null,null,null,null,null,null,"XVR7104E-4KL-B-X"]
[null,null,null,null,null,null,null,"XVR7104E-4KL-X"]
[null,null,null,null,null,null,null,"XVR7104HE-4KL-X"]
[null,null,null,null,null,null,null,"XVR7108E-4KL-B-X"]
[null,null,null,null,null,null,null,"XVR7108E-4KL-X"]
[null,null,null,null,null,null,null,"XVR7108HE-4KL-X"]
[null,null,null,null,null,null,null,"XVR7108HE-4K-X"]
[null,null,null,null,null,null,null,"XVR5208AN-4KL-X"]
[null,null,null,null,null,null,null,"XVR5208AN-4KL-X-8P"]
[null,null,null,null,null,null,null,"XVR7208A-4KL-X"]
[null,null,null,null,null,null,null,"XVR7208A-4K-X"]
[null,null,null,null,null,null,null,"XVR1B16"]
[null,null,null,null,null,null,null,{"$f":"OFFSET(B$2,INT((ROW(B323)-2)/5),MOD(ROW(B323)-2,5))","v":"XVR1B16H"}]
[null,null,null,null,null,null,null,"XVR4116HS-X"]
[null,null,null,null,null,null,null,"XVR5116H-4KL-X"]
[null,null,null,null,null,null,null,"XVR5116HE-X"]
[null,null,null,null,null,null,null,"XVR5116HS-X"]
[null,null,null,null,null,null,null,"XVR5116H-X"]
[null,null,null,null,null,null,null,"XVR7116HE-4KL-X"]
[null,null,null,null,null,null,null,"XVR4216AN-X"]
[null,null,null,null,null,null,null,"XVR5216AN-4KL-X"]
[null,null,null,null,null,null,null,"XVR5216AN-4KL-X-16P"]
[null,null,null,null,null,null,null,"XVR5216AN-X"]
[null,null,null,null,null,null,null,"XVR5216A-X"]
[null,null,null,null,null,null,null,"XVR7216A-4KL-X"]
[null,null,null,null,null,null,null,"XVR5408L-X"]
[null,null,null,null,null,null,null,"XVR5416L-X"]
[null,null,null,null,null,null,null,"XVR5432L-X"]
[null,null,null,null,null,null,null,"XVR7416L-4KL-X"]
[null,null,null,null,null,null,null,"XVR5808S-X"]
[null,null,null,null,null,null,null,"XVR5816S-X"]
[null,null,null,null,null,null,null,"XVR5832S-X"]
[null,null,null,null,null,null,null,"XVR7816S-4KL-X"]
[null,null,null,null,null,null,null,"XVR7816S-4KL-X-LP"]
[null,null,null,null,null,null,null,0]
[null,null,null,null,null,null,null,0]
[null,null,null,null,null,null,null,"XVR8808S"]
[null,null,null,null,null,null,null,"XVR8816S"]
[null,null,null,null,null,null,null,"XVR8208A-4K-I"]
[null,null,null,null,null,null,null,"XVR8216A-4KL-I"]
[null,null,null,null,null,null,null,"XVR8816S-4KL-I"]
[null,null,null,null,null,null,null,"HCVR0804LC-NX-V2"]
[null,null,null,null,null,null,null,"HCVR4104HC-V4"]
[null,null,null,null,null,null,null,"HCVR4104HS-V4-E"]
[null,null,null,null,null,null,null,"HCVR5104HS-V4-E"]
[null,null,null,null,null,null,null,"HCVR5104HS-V5"]
[null,null,null,null,null,null,null,"HCVR5108HS-V4-E"]
[null,null,null,null,null,null,null,"HCVR5108HS-V5"]
[null,null,null,null,null,null,null,"HCVR7104H-4M"]
[null,null,null,null,null,null,null,"HCVR7104H-4M-V5"]
[null,null,null,null,null,null,null,"HCVR7104HS-V4"]
[null,null,null,null,null,null,null,"HCVR7104HS-V5"]
[null,null,null,null,null,null,null,"HCVR7108H-4M-V5"]
[null,null,null,null,null,null,null,"HCVR7108HS-V4"]
[null,null,null,null,null,null,null,"HCVR7108HS-V5"]
[null,null,null,null,null,null,null,"HCVR0404HG-AF-V4"]
[null,null,null,null,null,null,null,"HCVR0404HG-A-V4"]
[null,null,null,null,null,null,null,"HCVR0404IF-AF"]
[null,null,null,null,null,null,null,"HCVR0804HG-AF-V4"]
[null,null,null,null,null,null,null,"HCVR0804HG-A-V4"]
[null,null,null,null,null,null,null,"HCVR0804IF-AF"]
[null,null,null,null,null,null,null,"HCVR0805IF-AF"]
[null,null,null,null,null,null,null,"HCVR5208A-V4-E"]
[null,null,null,null,null,null,null,"HCVR5208A-V5"]
[null,null,null,null,null,null,null,"HCVR7208A-V4"]
[null,null,null,null,null,null,null,"HCVR7208A-V5"]
[null,null,null,null,null,null,null,"HCVR5116HS-V4-E"]
[null,null,null,null,null,null,null,"HCVR5116HS-V5"]
[null,null,null,null,null,null,null,"HCVR1604HG-AF-V4"]
[null,null,null,null,null,null,null,"HCVR1604HG-A-V4"]
[null,null,null,null,null,null,null,"HCVR1604TG-AF"]
[null,null,null,null,null,null,null,"HCVR1605IF-AF"]
[null,null,null,null,null,null,null,"HCVR5216AN-V4-E"]
[null,null,null,null,null,null,null,"HCVR5216A-V4-E"]
[null,null,null,null,null,null,null,"HCVR5216A-V5"]
[null,null,null,null,null,null,null,"HCVR7216AN-V4"]
[null,null,null,null,null,null,null,{"$f":"OFFSET(B$2,INT((ROW(B387)-2)/5),MOD(ROW(B387)-2,5))","v":"HCVR7216A-V4"}]
[null,null,null,null,null,null,null,"HCVR7216A-V5"]
[null,null,null,null,null,null,null,"HCVR5232AN-V4-E"]
[null,null,null,null,null,null,null,"HCVR0804HG-LF-V4"]
[null,null,null,null,null,null,null,"HCVR0804HG-L-V4"]
[null,null,null,null,null,null,null,"HCVR1604HG-LF-V4"]
[null,null,null,null,null,null,null,"HCVR1604HG-L-V4"]
[null,null,null,null,null,null,null,"HCVR5408L-V4"]
[null,null,null,null,null,null,null,"HCVR5416L-V4"]
[null,null,null,null,null,null,null,"HCVR5432L-V4"]
[null,null,null,null,null,null,null,"HCVR5432L-V5"]
[null,null,null,null,null,null,null,"HCVR7408L-V4"]
[null,null,null,null,null,null,null,"HCVR7416L-V4"]
[null,null,null,null,null,null,null,"HCVR7416L-V5"]
[null,null,null,null,null,null,null,"HCVR0404FG-SF-V4"]
[null,null,null,null,null,null,null,"HCVR0804FG-SF-V4"]
[null,null,null,null,null,null,null,"HCVR0804FG-U-V3"]
[null,null,null,null,null,null,null,"HCVR0804HG-SFD-V4"]
[null,null,null,null,null,null,null,"HCVR0804HG-S-V4"]
[null,null,null,null,null,null,null,"HCVR0804HG-URH-V4"]
[null,null,null,null,null,null,null,"HCVR0805HG-SM-V5"]
[null,null,null,null,null,null,null,"HCVR1604FG-SF-V4"]
[null,null,null,null,null,null,null,"HCVR1604FG-S-V3"]
[null,null,null,null,null,null,null,"HCVR1604FG-U-V3"]
[null,null,null,null,null,null,null,"HCVR1604FG-U-V4"]
[null,null,null,null,null,null,null,"HCVR1604HG-SFD-V4"]
[null,null,null,null,null,null,null,"HCVR1604HG-S-V4"]
[null,null,null,null,null,null,null,"HCVR1604HG-URH-V4"]
[null,null,null,null,null,null,null,"HCVR1605FG-SF-V5"]
[null,null,null,null,null,null,null,"HCVR1605HG-SF-V5"]
[null,null,null,null,null,null,null,"HCVR1605HG-S-V5"]
[null,null,null,null,null,null,null,"HCVR1605IF-SF"]
[null,null,null,null,null,null,null,"HCVR3204HG-S-V4"]
[null,null,null,null,null,null,null,"HCVR3205HG-S-V5"]
[null,null,null,null,null,null,null,"HCVR5808S-V4"]
[null,null,null,null,null,null,null,"HCVR5816S-V4"]
[null,null,null,null,null,null,null,"HCVR5832S-V4"]
[null,null,null,null,null,null,null,"HCVR5832S-V5"]
[null,null,null,null,null,null,null,"HCVR7808S-V4"]
[null,null,null,null,null,null,null,"HCVR7816S-V4"]
[null,null,null,null,null,null,null,"HCVR7816S-V5"]
[null,null,null,null,null,null,null,0]
[null,null,null,null,null,null,null,0]
[null,null,null,null,null,null,null,0]
[null,null,null,null,null,null,null,0]
[null,null,null,null,null,null,null,"HCVR8216A-S3"]
[null,null,null,null,null,null,null,"HCVR8416L-S3"]
[null,null,null,null,null,null,null,"HCVR8816S-S3"]
[null,null,null,null,null,null,null,"HCVR8816S-URH-S3"]
[null,null,null,null,null,null,null,"HCVR1604HG-SF-V4"]
[null,null,null,null,null,null,null,"HCVR0804HG-SF-V4"]
[null,null,null,null,null,null,null,"HCVR1604FG-U-X"]
[null,null,null,null,null,null,null,"HCVR1604FG-U-X-V4"]
[null,null,null,null,null,null,null,"HCVR1604FG-XF-V4"]
[null,null,null,null,null,null,null,"HCVR1604HG-U-X-V4"]
[null,null,null,null,null,null,null,"HCVR1604HG-XF-V4"]
[null,null,null,null,null,null,null,"HCVR1605FG-XF-V5"]
[null,null,null,null,null,null,null,"HCVR1605IF-XF"]
[null,null,null,null,null,null,null,0]
[null,null,null,null,null,null,null,0]
[null,null,null,null,null,null,null,0]
[null,null,null,null,null,null,null,0]
[null,null,null,null,null,null,null,0]

{"sheet":"TypeD","index":6,"n_rows":83,"n_cols":6,"rows_kept":83,"cut":false,"hidden":true,"merged":[]}
["TypeD","16盘位及以NVR/XVR/HCVR/DVR，支持64路及以下视频录像"]
["NVR","LC-NVR2104-W-4KS2","LC-NVR2108-W-4KS2","NVR1104HC-P-S3","NVR1104HC-S3","NVR1108HC-S3"]
[null,"NVR1108HS-8P-S3","NVR1B04-4P-EZIP","NVR1B04-EZIP","NVR1B04HC/E-EZIP","NVR1B04HC-4P/E-EZIP"]
[null,"NVR1B04HS-4P-EZIP","NVR1B04HS-EZIP","NVR1B08-EZIP","NVR1B08HC/E-EZIP","NVR1B08HS-8P/E-EZIP"]
[null,"NVR1B08HS-8P-EZIP","NVR1B08HS-EZIP","NVR2104-4KS2","NVR2104HS-4KS2","NVR2104HS-P-4KS2"]
[null,"NVR2104HS-W-4KS2","NVR2104-P-4KS2","NVR2104-W-4KS2","NVR2108-4KS2","NVR2108-8P-4KS2"]
[null,"NVR2108HS-4KS2","NVR2108HS-8P-4KS2","NVR2108HS-W-4KS2","NVR2108-W-4KS2","NVR2116-4KS2"]
[null,"NVR2116HS-4KS2","NVR4104-4KS2","NVR4104HS-4KS2","NVR4104HS-P-4KS2","NVR4104-P-4KS2"]
[null,"NVR4108-4KS2","NVR4108-8P-4KS2","NVR4108HS-4KS2","NVR4108HS-8P-4KS2","NVR4108HS-P-4KS2"]
[null,"NVR4108-P-4KS2","NVR4116-4KS2","NVR4116-8P-4KS2","NVR4116HS-4KS2","NVR4116HS-8P-4KS2"]
[null,"NVR2204-4KS2","NVR2204-P-4KS2","NVR2208-4KS2","NVR2208-8P-4KS2","NVR2216-4KS2"]
[null,"NVR2B16-EZIP","NVR4204-P-4KS2","NVR4208-4KS2","NVR4208-8P-4KS2","NVR4216-16P-4KS2"]
[null,"NVR4216-4KS2","NVR5208-4KS2(V2.0)","NVR5208-8P-4KS2","NVR5208-8P-4KS2(V2.0)","NVR5208-8P-4KS2E"]
[null,"NVR5216-16P-4KS2E","NVR5216-4KS2(V2.0)","NVR5216-8P-4KS2(V2.0)","NVR5216-8P-4KS2E","LC-NVR2104HS-W-HDS3-Imou"]
[null,"LC-NVR2104-W-HDS3","LC-NVR2108HS-W-HDS3-Imou","LC-NVR2108-W-HDS3","NVR1104-HDS2","NVR1104HS"]
[null,"NVR1104HS-HDS2","NVR1104HS-P-HDS2","NVR1108-HDS2","NVR1108HS","NVR1108HS-HDS2"]
[null,"NVR2104HC-HDS2","NVR2104HC-P-HDS2","NVR2104HS-4KS3","NVR2104HS-HDS2","NVR2104HS-HDS3"]
[null,"NVR2104HS-P-HDS2","NVR2104HS-P-HDS3","NVR2104HS-P-S1","NVR2104HS-S1","NVR2104HS-W-HDS3"]
[null,"NVR2104-S2E","NVR2108HC-8P-HDS2","NVR2108HC-HDS2","NVR2108HS-4KS3","NVR2108HS-8P-HDS2"]
[null,"NVR2108HS-8P-HDS3","NVR2108HS-8P-S1","NVR2108HS-HDS3","NVR2108HS-S1","NVR2108HS-W-HDS3"]
[null,"NVR2108-S2E","NVR2116HS-HDS3","NVR4104H","NVR4104H-4G","NVR4104H-P"]
[null,"NVR4104HS-P-HDS2","NVR4104H-W","NVR4108H","NVR4108H-4G","NVR4108H-8P"]
[null,"NVR4108HS-8P-HDS2","NVR4116HS-4KS2","S3-04","S3-04-P","S3-08"]
[null,"S3E-8P-08","S3E-P-04","NVR2204-4KS3","NVR2204-HDS3","NVR2204-P-HDS2"]
[null,"NVR2204-P-HDS3","NVR2204-P-S1","NVR2204-S1","NVR2208-4KS3","NVR2208-8P-HDS3"]
[null,"NVR2208-8P-S1","NVR2208-HDS3","NVR2208-S1","NVR2216-HDS3","NVR4208-4KS2"]
[null,"NVR4208-8P-4KS2","NVR4208-8P-HDS2","NVR4208-E","NVR4208-HDS2","NVR4216-16P-4KS2"]
[null,"NVR4216-16P-HD","NVR4216-16P-HDS2","NVR4216-4KS2","NVR4216-E","NVR4216-HDS2"]
[null,"NVR5208-4KS2","NVR5216-4K","NVR5216-4KS2","NVR802-16-HDS2"]
[null,"NVR4208-8P-I","NVR4216-16P-I","NVR5216-16P-I","NVR5216-8P-I"]
[null,"NVR4232-16P-4KS2","NVR4232-4KS2","NVR5224-24P-4KS2","NVR5232-16P-4KS2E","NVR5232-4KS2(V2.0)"]
[null,"NVR5232-8P-4KS2(V2.0)","NVR4232-4KS2","NVR4232-E","NVR4232-HDS2","NVR5232-4K"]
[null,"NVR5232-4KS2","NVR4416-16P-4KS2","NVR4416-4KS2","NVR4432-16P-4KS2","NVR4432-4KS2"]
[null,"NVR5416-16P-4KS2E","NVR5416-4KS2(V2.0)","NVR5424-24P-4KS2","NVR5432-16P-4KS2E","NVR5432-4KS2(V2.0)"]
[null,"NVR4408-4KS2","NVR4408-HDS2","NVR4416-16P-4KS2","NVR4416-16P-E","NVR4416-16P-HDS2"]
[null,"NVR4416-4KS2","NVR4416-E","NVR4416-HDS2","NVR4432-4KS2","NVR4432-HDS2"]
[null,"NVR5408-4K","NVR5408-4KS2","NVR5416-4KS2","NVR5432-4K","NVR5432-4KS2"]
[null,"NVR4816-16P-4KS2","NVR4816-4KS2","NVR4832-16P-4KS2","NVR4832-4KS2","NVR5816-16P-4KS2E"]
[null,"NVR5816-4KS2(V2.0)","NVR5832-16P-4KS2E","NVR5832-4KS2(V2.0)","NVR608-32-4KS2","NVR4808-4KS2"]
[null,"NVR4808-HDS2","NVR4816-4KS2","NVR4816-HDS2","NVR4832-4KS2","NVR4832-HDS2"]
[null,"NVR5808-4K","NVR5808-4KS2","NVR5808FG-4KS2","NVR5816-4K","NVR5816-4KS2"]
[null,"NVR5816FG-4KS2","NVR5832-4K","NVR5832-4KS2","NVR5832FG-4KS2","NVR608-16-4KS2"]
[null,"NVR608-32-4KS2","NVR608-8-4KS2","NVR608H-32-4KS2","NVR808-16-HDS2","NVR808-32-HDS2"]
[null,"NVR808-8-HDS2","NVR4416-16P-I","NVR4432-I","NVR4832-I","NVR5432-16P-I"]
[null,"NVR5832-I","NVR402-I","NVR404-I","NVR4232-I","NVR4432-I"]
[null,"NVR4832-I","NVR502-I","NVR504-I","NVR5232-I","NVR5432-I"]
[null,"NVR616-64-4KS2","NVR616D-64-4KS2","NVR616DR-64-4KS2","NVR616R-64-4KS2","NVR5016-4KS2"]
[null,"NVR5016FG-4KS2","NVR5032-4KS2","NVR5032FG-4KS2","NVR5064-4KS2","NVR5064FG-4KS2"]
[null,"NVR616-64-4KS2","NVR616D-64-4KS2","NVR616DR-64-4KS2","NVR616R-64-4KS2","NVR816-32-HDS2"]
[null,"NVR816-64-HDS2","NVR5864-I","NVR5864FG-I","NVR5864-I","NVR5064FG-I"]
[null,"NVR5064-I"]
["XVR","XVR1A04","XVR1A08","XVR1B04","XVR1B04H","XVR1B08"]
[null,"XVR1B08H","XVR4104C-X1","XVR4104HS-X1","XVR4108C-X1","XVR4108HS-X1"]
[null,"XVR5104C-4KL-X","XVR5104C-X1","XVR5104H-4KL-X","XVR5104HE-X1","XVR5104HS-4KL-X"]
[null,"XVR5104HS-X1","XVR5104H-X1","XVR5108C-X","XVR5108H-4KL-X","XVR5108H-4KL-X-8P"]
[null,"XVR5108HE-X","XVR5108HS-4KL-X","XVR5108HS-X","XVR5108H-X","XVR7104E-4KL-B-X"]
[null,"XVR7104E-4KL-X","XVR7104HE-4KL-X","XVR7108E-4KL-B-X","XVR7108E-4KL-X","XVR7108HE-4KL-X"]
[null,"XVR7108HE-4K-X","XVR5208AN-4KL-X","XVR5208AN-4KL-X-8P","XVR7208A-4KL-X","XVR7208A-4K-X"]
[null,"XVR1B16","XVR1B16H","XVR4116HS-X","XVR5116H-4KL-X","XVR5116HE-X"]
[null,"XVR5116HS-X","XVR5116H-X","XVR7116HE-4KL-X","XVR4216AN-X","XVR5216AN-4KL-X"]
[null,"XVR5216AN-4KL-X-16P","XVR5216AN-X","XVR5216A-X","XVR7216A-4KL-X","XVR5408L-X"]
[null,"XVR5416L-X","XVR5432L-X","XVR7416L-4KL-X","XVR5808S-X","XVR5816S-X"]
[null,"XVR5832S-X","XVR7816S-4KL-X","XVR7816S-4KL-X-LP"]
[null,"XVR8808S","XVR8816S","XVR8208A-4K-I","XVR8216A-4KL-I","XVR8816S-4KL-I"]
["HCVR","HCVR0804LC-NX-V2","HCVR4104HC-V4","HCVR4104HS-V4-E","HCVR5104HS-V4-E","HCVR5104HS-V5"]
[null,"HCVR5108HS-V4-E","HCVR5108HS-V5","HCVR7104H-4M","HCVR7104H-4M-V5","HCVR7104HS-V4"]
[null,"HCVR7104HS-V5","HCVR7108H-4M-V5","HCVR7108HS-V4","HCVR7108HS-V5","HCVR0404HG-AF-V4"]
[null,"HCVR0404HG-A-V4","HCVR0404IF-AF","HCVR0804HG-AF-V4","HCVR0804HG-A-V4","HCVR0804IF-AF"]
[null,"HCVR0805IF-AF","HCVR5208A-V4-E","HCVR5208A-V5","HCVR7208A-V4","HCVR7208A-V5"]
[null,"HCVR5116HS-V4-E","HCVR5116HS-V5","HCVR1604HG-AF-V4","HCVR1604HG-A-V4","HCVR1604TG-AF"]
[null,"HCVR1605IF-AF","HCVR5216AN-V4-E","HCVR5216A-V4-E","HCVR5216A-V5","HCVR7216AN-V4"]
[null,"HCVR7216A-V4","HCVR7216A-V5","HCVR5232AN-V4-E","HCVR0804HG-LF-V4","HCVR0804HG-L-V4"]
[null,"HCVR1604HG-LF-V4","HCVR1604HG-L-V4","HCVR5408L-V4","HCVR5416L-V4","HCVR5432L-V4"]
[null,"HCVR5432L-V5","HCVR7408L-V4","HCVR7416L-V4","HCVR7416L-V5","HCVR0404FG-SF-V4"]
[null,"HCVR0804FG-SF-V4","HCVR0804FG-U-V3","HCVR0804HG-SFD-V4","HCVR0804HG-S-V4","HCVR0804HG-URH-V4"]
[null,"HCVR0805HG-SM-V5","HCVR1604FG-SF-V4","HCVR1604FG-S-V3","HCVR1604FG-U-V3","HCVR1604FG-U-V4"]
[null,"HCVR1604HG-SFD-V4","HCVR1604HG-S-V4","HCVR1604HG-URH-V4","HCVR1605FG-SF-V5","HCVR1605HG-SF-V5"]
[null,"HCVR1605HG-S-V5","HCVR1605IF-SF","HCVR3204HG-S-V4","HCVR3205HG-S-V5","HCVR5808S-V4"]
[null,"HCVR5816S-V4","HCVR5832S-V4","HCVR5832S-V5","HCVR7808S-V4","HCVR7816S-V4"]
[null,"HCVR7816S-V5"]
[null,"HCVR8216A-S3","HCVR8416L-S3","HCVR8816S-S3","HCVR8816S-URH-S3","HCVR1604HG-SF-V4"]
[null,"HCVR0804HG-SF-V4","HCVR1604FG-U-X","HCVR1604FG-U-X-V4","HCVR1604FG-XF-V4","HCVR1604HG-U-X-V4"]
[null,"HCVR1604HG-XF-V4","HCVR1605FG-XF-V5","HCVR1605IF-XF"]

{"sheet":"TypeE","index":7,"n_rows":75,"n_cols":6,"rows_kept":75,"cut":false,"hidden":true,"merged":[]}
["TypeE","8盘位及以NVR/XVR/HCVR/DVR，支持32路及以下视频录像，不支持RAID"]
["NVR","LC-NVR2104-W-4KS2","LC-NVR2108-W-4KS2","NVR1104HC-P-S3","NVR1104HC-S3","NVR1108HC-S3"]
[null,"NVR1108HS-8P-S3","NVR1B04-4P-EZIP","NVR1B04-EZIP","NVR1B04HC/E-EZIP","NVR1B04HC-4P/E-EZIP"]
[null,"NVR1B04HS-4P-EZIP","NVR1B04HS-EZIP","NVR1B08-EZIP","NVR1B08HC/E-EZIP","NVR1B08HS-8P/E-EZIP"]
[null,"NVR1B08HS-8P-EZIP","NVR1B08HS-EZIP","NVR2104-4KS2","NVR2104HS-4KS2","NVR2104HS-P-4KS2"]
[null,"NVR2104HS-W-4KS2","NVR2104-P-4KS2","NVR2104-W-4KS2","NVR2108-4KS2","NVR2108-8P-4KS2"]
[null,"NVR2108HS-4KS2","NVR2108HS-8P-4KS2","NVR2108HS-W-4KS2","NVR2108-W-4KS2","NVR2116-4KS2"]
[null,"NVR2116HS-4KS2","NVR4104-4KS2","NVR4104HS-4KS2","NVR4104HS-P-4KS2","NVR4104-P-4KS2"]
[null,"NVR4108-4KS2","NVR4108-8P-4KS2","NVR4108HS-4KS2","NVR4108HS-8P-4KS2","NVR4108HS-P-4KS2"]
[null,"NVR4108-P-4KS2","NVR4116-4KS2","NVR4116-8P-4KS2","NVR4116HS-4KS2","NVR4116HS-8P-4KS2"]
[null,"NVR2204-4KS2","NVR2204-P-4KS2","NVR2208-4KS2","NVR2208-8P-4KS2","NVR2216-4KS2"]
[null,"NVR2B16-EZIP","NVR4204-P-4KS2","NVR4208-4KS2","NVR4208-8P-4KS2","NVR4216-16P-4KS2"]
[null,"NVR4216-4KS2","NVR5208-4KS2(V2.0)","NVR5208-8P-4KS2","NVR5208-8P-4KS2(V2.0)","NVR5208-8P-4KS2E"]
[null,"NVR5216-16P-4KS2E","NVR5216-4KS2(V2.0)","NVR5216-8P-4KS2(V2.0)","NVR5216-8P-4KS2E","LC-NVR2104HS-W-HDS3-Imou"]
[null,"LC-NVR2104-W-HDS3","LC-NVR2108HS-W-HDS3-Imou","LC-NVR2108-W-HDS3","NVR1104-HDS2","NVR1104HS"]
[null,"NVR1104HS-HDS2","NVR1104HS-P-HDS2","NVR1108-HDS2","NVR1108HS","NVR1108HS-HDS2"]
[null,"NVR2104HC-HDS2","NVR2104HC-P-HDS2","NVR2104HS-4KS3","NVR2104HS-HDS2","NVR2104HS-HDS3"]
[null,"NVR2104HS-P-HDS2","NVR2104HS-P-HDS3","NVR2104HS-P-S1","NVR2104HS-S1","NVR2104HS-W-HDS3"]
[null,"NVR2104-S2E","NVR2108HC-8P-HDS2","NVR2108HC-HDS2","NVR2108HS-4KS3","NVR2108HS-8P-HDS2"]
[null,"NVR2108HS-8P-HDS3","NVR2108HS-8P-S1","NVR2108HS-HDS3","NVR2108HS-S1","NVR2108HS-W-HDS3"]
[null,"NVR2108-S2E","NVR2116HS-HDS3","NVR4104H","NVR4104H-4G","NVR4104H-P"]
[null,"NVR4104HS-P-HDS2","NVR4104H-W","NVR4108H","NVR4108H-4G","NVR4108H-8P"]
[null,"NVR4108HS-8P-HDS2","NVR4116HS-4KS2","S3-04","S3-04-P","S3-08"]
[null,"S3E-8P-08","S3E-P-04","NVR2204-4KS3","NVR2204-HDS3","NVR2204-P-HDS2"]
[null,"NVR2204-P-HDS3","NVR2204-P-S1","NVR2204-S1","NVR2208-4KS3","NVR2208-8P-HDS3"]
[null,"NVR2208-8P-S1","NVR2208-HDS3","NVR2208-S1","NVR2216-HDS3","NVR4208-4KS2"]
[null,"NVR4208-8P-4KS2","NVR4208-8P-HDS2","NVR4208-E","NVR4208-HDS2","NVR4216-16P-4KS2"]
[null,"NVR4216-16P-HD","NVR4216-16P-HDS2","NVR4216-4KS2","NVR4216-E","NVR4216-HDS2"]
[null,"NVR5208-4KS2","NVR5216-4K","NVR5216-4KS2","NVR802-16-HDS2"]
[null,"NVR4208-8P-I","NVR4216-16P-I","NVR5216-16P-I","NVR5216-8P-I"]
[null,"NVR4232-16P-4KS2","NVR4232-4KS2","NVR5224-24P-4KS2","NVR5232-16P-4KS2E","NVR5232-4KS2(V2.0)"]
[null,"NVR5232-8P-4KS2(V2.0)","NVR4232-4KS2","NVR4232-E","NVR4232-HDS2","NVR5232-4K"]
[null,"NVR5232-4KS2","NVR4416-16P-4KS2","NVR4416-4KS2","NVR4432-16P-4KS2","NVR4432-4KS2"]
[null,"NVR5416-16P-4KS2E","NVR5416-4KS2(V2.0)","NVR5424-24P-4KS2","NVR5432-16P-4KS2E","NVR5432-4KS2(V2.0)"]
[null,"NVR4408-4KS2","NVR4408-HDS2","NVR4416-16P-4KS2","NVR4416-16P-E","NVR4416-16P-HDS2"]
[null,"NVR4416-4KS2","NVR4416-E","NVR4416-HDS2","NVR4432-4KS2","NVR4432-HDS2"]
[null,"NVR5408-4K","NVR5408-4KS2","NVR5416-4KS2","NVR5432-4K","NVR5432-4KS2"]
[null,"NVR4816-16P-4KS2","NVR4816-4KS2","NVR4832-16P-4KS2","NVR4832-4KS2","NVR5816-16P-4KS2E"]
[null,"NVR5816-4KS2(V2.0)","NVR5832-16P-4KS2E","NVR5832-4KS2(V2.0)","NVR608-32-4KS2","NVR4808-4KS2"]
[null,"NVR4808-HDS2","NVR4816-4KS2","NVR4816-HDS2","NVR4832-4KS2","NVR4832-HDS2"]
[null,"NVR5808-4K","NVR5808-4KS2","NVR5808FG-4KS2","NVR5816-4K","NVR5816-4KS2"]
[null,"NVR5816FG-4KS2","NVR5832-4K","NVR5832-4KS2","NVR5832FG-4KS2","NVR608-16-4KS2"]
[null,"NVR608-32-4KS2","NVR608-8-4KS2","NVR608H-32-4KS2","NVR808-16-HDS2","NVR808-32-HDS2"]
[null,"NVR808-8-HDS2","NVR4416-16P-I","NVR4432-I","NVR4832-I","NVR5432-16P-I"]
[null,"NVR5832-I","NVR402-I","NVR404-I","NVR4232-I","NVR4432-I"]
[null,"NVR4832-I","NVR502-I","NVR504-I","NVR5232-I","NVR5432-I"]
["XVR","XVR1A04","XVR1A08","XVR1B04","XVR1B04H","XVR1B08"]
[null,"XVR1B08H","XVR4104C-X1","XVR4104HS-X1","XVR4108C-X1","XVR4108HS-X1"]
[null,"XVR5104C-4KL-X","XVR5104C-X1","XVR5104H-4KL-X","XVR5104HE-X1","XVR5104HS-4KL-X"]
[null,"XVR5104HS-X1","XVR5104H-X1","XVR5108C-X","XVR5108H-4KL-X","XVR5108H-4KL-X-8P"]
[null,"XVR5108HE-X","XVR5108HS-4KL-X","XVR5108HS-X","XVR5108H-X","XVR7104E-4KL-B-X"]
[null,"XVR7104E-4KL-X","XVR7104HE-4KL-X","XVR7108E-4KL-B-X","XVR7108E-4KL-X","XVR7108HE-4KL-X"]
[null,"XVR7108HE-4K-X","XVR5208AN-4KL-X","XVR5208AN-4KL-X-8P","XVR7208A-4KL-X","XVR7208A-4K-X"]
[null,"XVR1B16","XVR1B16H","XVR4116HS-X","XVR5116H-4KL-X","XVR5116HE-X"]
[null,"XVR5116HS-X","XVR5116H-X","XVR7116HE-4KL-X","XVR4216AN-X","XVR5216AN-4KL-X"]
[null,"XVR5216AN-4KL-X-16P","XVR5216AN-X","XVR5216A-X","XVR7216A-4KL-X","XVR5408L-X"]
[null,"XVR5416L-X","XVR5432L-X","XVR7416L-4KL-X","XVR5808S-X","XVR5816S-X"]
[null,"XVR5832S-X","XVR7816S-4KL-X","XVR7816S-4KL-X-LP"]
["HCVR","HCVR0804LC-NX-V2","HCVR4104HC-V4","HCVR4104HS-V4-E","HCVR5104HS-V4-E","HCVR5104HS-V5"]
[null,"HCVR5108HS-V4-E","HCVR5108HS-V5","HCVR7104H-4M","HCVR7104H-4M-V5","HCVR7104HS-V4"]
[null,"HCVR7104HS-V5","HCVR7108H-4M-V5","HCVR7108HS-V4","HCVR7108HS-V5","HCVR0404HG-AF-V4"]
[null,"HCVR0404HG-A-V4","HCVR0404IF-AF","HCVR0804HG-AF-V4","HCVR0804HG-A-V4","HCVR0804IF-AF"]
[null,"HCVR0805IF-AF","HCVR5208A-V4-E","HCVR5208A-V5","HCVR7208A-V4","HCVR7208A-V5"]
[null,"HCVR5116HS-V4-E","HCVR5116HS-V5","HCVR1604HG-AF-V4","HCVR1604HG-A-V4","HCVR1604TG-AF"]
[null,"HCVR1605IF-AF","HCVR5216AN-V4-E","HCVR5216A-V4-E","HCVR5216A-V5","HCVR7216AN-V4"]
[null,"HCVR7216A-V4","HCVR7216A-V5","HCVR5232AN-V4-E","HCVR0804HG-LF-V4","HCVR0804HG-L-V4"]
[null,"HCVR1604HG-LF-V4","HCVR1604HG-L-V4","HCVR5408L-V4","HCVR5416L-V4","HCVR5432L-V4"]
[null,"HCVR5432L-V5","HCVR7408L-V4","HCVR7416L-V4","HCVR7416L-V5","HCVR0404FG-SF-V4"]
[null,"HCVR0804FG-SF-V4","HCVR0804FG-U-V3","HCVR0804HG-SFD-V4","HCVR0804HG-S-V4","HCVR0804HG-URH-V4"]
[null,"HCVR0805HG-SM-V5","HCVR1604FG-SF-V4","HCVR1604FG-S-V3","HCVR1604FG-U-V3","HCVR1604FG-U-V4"]
[null,"HCVR1604HG-SFD-V4","HCVR1604HG-S-V4","HCVR1604HG-URH-V4","HCVR1605FG-SF-V5","HCVR1605HG-SF-V5"]
[null,"HCVR1605HG-S-V5","HCVR1605IF-SF","HCVR3204HG-S-V4","HCVR3205HG-S-V5","HCVR5808S-V4"]
[null,"HCVR5816S-V4","HCVR5832S-V4","HCVR5832S-V5","HCVR7808S-V4","HCVR7816S-V4"]
[null,"HCVR7816S-V5"]
["DVR","DVR5416-L","DVR1604HG-S/N-E(V2.0)","DVR1604HG-TU"]

{"sheet":"TypeF","index":8,"n_rows":42,"n_cols":6,"rows_kept":42,"cut":false,"hidden":true,"merged":[]}
["TypeF","2盘位及以NVR/XVR/HCVR/DVR，支持16路及以下视频录像，不支持RAID"]
["NVR","LC-NVR2104-W-4KS2","LC-NVR2108-W-4KS2","NVR1104HC-P-S3","NVR1104HC-S3","NVR1108HC-S3"]
[null,"NVR1108HS-8P-S3","NVR1B04-4P-EZIP","NVR1B04-EZIP","NVR1B04HC/E-EZIP","NVR1B04HC-4P/E-EZIP"]
[null,"NVR1B04HS-4P-EZIP","NVR1B04HS-EZIP","NVR1B08-EZIP","NVR1B08HC/E-EZIP","NVR1B08HS-8P/E-EZIP"]
[null,"NVR1B08HS-8P-EZIP","NVR1B08HS-EZIP","NVR2104-4KS2","NVR2104HS-4KS2","NVR2104HS-P-4KS2"]
[null,"NVR2104HS-W-4KS2","NVR2104-P-4KS2","NVR2104-W-4KS2","NVR2108-4KS2","NVR2108-8P-4KS2"]
[null,"NVR2108HS-4KS2","NVR2108HS-8P-4KS2","NVR2108HS-W-4KS2","NVR2108-W-4KS2","NVR2116-4KS2"]
[null,"NVR2116HS-4KS2","NVR4104-4KS2","NVR4104HS-4KS2","NVR4104HS-P-4KS2","NVR4104-P-4KS2"]
[null,"NVR4108-4KS2","NVR4108-8P-4KS2","NVR4108HS-4KS2","NVR4108HS-8P-4KS2","NVR4108HS-P-4KS2"]
[null,"NVR4108-P-4KS2","NVR4116-4KS2","NVR4116-8P-4KS2","NVR4116HS-4KS2","NVR4116HS-8P-4KS2"]
[null,"NVR2204-4KS2","NVR2204-P-4KS2","NVR2208-4KS2","NVR2208-8P-4KS2","NVR2216-4KS2"]
[null,"NVR2B16-EZIP","NVR4204-P-4KS2","NVR4208-4KS2","NVR4208-8P-4KS2","NVR4216-16P-4KS2"]
[null,"NVR4216-4KS2","NVR5208-4KS2(V2.0)","NVR5208-8P-4KS2","NVR5208-8P-4KS2(V2.0)","NVR5208-8P-4KS2E"]
[null,"NVR5216-16P-4KS2E","NVR5216-4KS2(V2.0)","NVR5216-8P-4KS2(V2.0)","NVR5216-8P-4KS2E","LC-NVR2104HS-W-HDS3-Imou"]
[null,"LC-NVR2104-W-HDS3","LC-NVR2108HS-W-HDS3-Imou","LC-NVR2108-W-HDS3","NVR1104-HDS2","NVR1104HS"]
[null,"NVR1104HS-HDS2","NVR1104HS-P-HDS2","NVR1108-HDS2","NVR1108HS","NVR1108HS-HDS2"]
[null,"NVR2104HC-HDS2","NVR2104HC-P-HDS2","NVR2104HS-4KS3","NVR2104HS-HDS2","NVR2104HS-HDS3"]
[null,"NVR2104HS-P-HDS2","NVR2104HS-P-HDS3","NVR2104HS-P-S1","NVR2104HS-S1","NVR2104HS-W-HDS3"]
[null,"NVR2104-S2E","NVR2108HC-8P-HDS2","NVR2108HC-HDS2","NVR2108HS-4KS3","NVR2108HS-8P-HDS2"]
[null,"NVR2108HS-8P-HDS3","NVR2108HS-8P-S1","NVR2108HS-HDS3","NVR2108HS-S1","NVR2108HS-W-HDS3"]
[null,"NVR2108-S2E","NVR2116HS-HDS3","NVR4104H","NVR4104H-4G","NVR4104H-P"]
[null,"NVR4104HS-P-HDS2","NVR4104H-W","NVR4108H","NVR4108H-4G","NVR4108H-8P"]
[null,"NVR4108HS-8P-HDS2","NVR4116HS-4KS2","S3-04","S3-04-P","S3-08"]
[null,"S3E-8P-08","S3E-P-04","NVR2204-4KS3","NVR2204-HDS3","NVR2204-P-HDS2"]
[null,"NVR2204-P-HDS3","NVR2204-P-S1","NVR2204-S1","NVR2208-4KS3","NVR2208-8P-HDS3"]
[null,"NVR2208-8P-S1","NVR2208-HDS3","NVR2208-S1","NVR2216-HDS3","NVR4208-4KS2"]
[null,"NVR4208-8P-4KS2","NVR4208-8P-HDS2","NVR4208-E","NVR4208-HDS2","NVR4216-16P-4KS2"]
[null,"NVR4216-16P-HD","NVR4216-16P-HDS2","NVR4216-4KS2","NVR4216-E","NVR4216-HDS2"]
[null,"NVR5208-4KS2","NVR5216-4K","NVR5216-4KS2","NVR802-16-HDS2"]
[null,"NVR4208-8P-I","NVR4216-16P-I","NVR5216-16P-I","NVR5216-8P-I"]
["XVR","XVR1A04","XVR1A08","XVR1B04","XVR1B04H","XVR1B08"]
[null,"XVR1B08H","XVR4104C-X1","XVR4104HS-X1","XVR4108C-X1","XVR4108HS-X1"]
[null,"XVR5104C-4KL-X","XVR5104C-X1","XVR5104H-4KL-X","XVR5104HE-X1","XVR5104HS-4KL-X"]
[null,"XVR5104HS-X1","XVR5104H-X1","XVR5108C-X","XVR5108H-4KL-X","XVR5108H-4KL-X-8P"]
[null,"XVR5108HE-X","XVR5108HS-4KL-X","XVR5108HS-X","XVR5108H-X","XVR7104E-4KL-B-X"]
[null,"XVR7104E-4KL-X","XVR7104HE-4KL-X","XVR7108E-4KL-B-X","XVR7108E-4KL-X","XVR7108HE-4KL-X"]
[null,"XVR7108HE-4K-X","XVR5208AN-4KL-X","XVR5208AN-4KL-X-8P","XVR7208A-4KL-X","XVR7208A-4K-X"]
["HCVR","HCVR0804LC-NX-V2","HCVR4104HC-V4","HCVR4104HS-V4-E","HCVR5104HS-V4-E","HCVR5104HS-V5"]
[null,"HCVR5108HS-V4-E","HCVR5108HS-V5","HCVR7104H-4M","HCVR7104H-4M-V5","HCVR7104HS-V4"]
[null,"HCVR7104HS-V5","HCVR7108H-4M-V5","HCVR7108HS-V4","HCVR7108HS-V5","HCVR0404HG-AF-V4"]
[null,"HCVR0404HG-A-V4","HCVR0404IF-AF","HCVR0804HG-AF-V4","HCVR0804HG-A-V4","HCVR0804IF-AF"]
[null,"HCVR0805IF-AF","HCVR5208A-V4-E","HCVR5208A-V5","HCVR7208A-V4","HCVR7208A-V5"]